Workbook

Sheet Coût de l'eau usée
A1: Version révisée le 18 / 04 / 2023 | L1: Cell link Année de calcul | M1: 1
L2: Cell link Nom de la commune | M2: 1
C3: Ministère du Développement durable et des Infrastructures | H3: Choisir l'année de calcul : | L3: Zone urbaine | M3: =IF(OR(M2=1,M2=108),0,LOOKUP(M2,M13:M114,N13:N114)) -> 0
C4: Association Luxembourgeoise des Services d'Eau | L4: Zone rurale | M4: =IF(OR(M2=1,M2=108),0,IF(M3=0,1,0)) -> 0
G5: Année de référence (comptes) : | J5: 2022 | L5: Limite des coûts indexée | M5: =5/108*M8*IF($M$1=2,1*(1+$D$13)^(J7-J5),1) -> 5.362962963
C6: Tableur relatif au calcul du coût de | L6: EHr de dimensionnement | M6: ='Amortissement infrastructures'!F281 -> 0
C7: l'évacuation et de la dépollution des eaux | H7: Données prévisionnelles : | J7: =J5+2 -> 2024 | L7: EHr raccordés | M7: ='Amortissement infrastructures'!H281 -> 0
L8: =CONCATENATE("Indice ICPN base 100 2015 (moyenne de l'année ",J5,")") -> Indice ICPN base 100 2015 (moyenne de l'année 2022) | M8: 115.84
L10: Evacuation (l/habitant/jour) | M10: =D22/D19/365*1000 -> 
C11: REMARQUE PRELIMINAIRE : Afin que les communes établissent en connaissance de cause la tarification de l’eau applicable à partir du 1er janvier de l'année X+1 en conformité avec la loi relative à l’eau, les communes procèdent au calcul du coût effectif de l’eau pour l'année qui précède X-1, le budget communal le plus récent décompté. A partir de l’année de référence X-1, le présent tableur fait une projection à l’année X+1 en tenant compte de l’évolution estimée en deux ans de l’indice des prix à la consommation et de l'indice des prix de la construction. Aussi est-il préconisé de se fixer une période de trois ans pour rechercher les équilibres budgétaires. En d’autres termes, les charges et les recettes sont observées sur une période de 3 ans avant que les prix soient réajustés tout en tenant compte de l'évolution prévisible du bilan financier. | L11: Long. réseau EU/EM (m/habitant) | M11: =('Amortissement infrastructures'!F32+'Amortissement infrastructures'!G32+'Amortissement infrastructures'!F44+'Amortissement infrastructures'!G44+'Amortissement infrastructures'!F54+'Amortissement infrastructures'!G54+'Amortissement infrastructures'!F65+'Amortissement infrastructures'!G65+'Amortissement infrastructures'!F86+'Amortissement infrastructures'!G86+'Amortissement infrastructures'!F96+'Amortissement infrastructures'!G96+'Amortissement infrastructures'!F106+'Amortissement infrastructures'!G106+'Amortissement infrastructures'!F117+'Amortissement infrastructures'!G117+'Amortissement infrastructures'!F142+'Amortissement infrastructures'!G142+'Amortissement infrastructures'!F152+'Amortissement infrastructures'!G152+'Amortissement infrastructures'!F162+'Amortissement infrastructures'!G162+'Amortissement infrastructures'!F173+'Amortissement infrastructures'!G173)/D19 -> 
F12: Légende : | G12: coûts partiellement non imputables | I12: coûts non imputables
C13: Variation annuelle estimée de l'indice IPCN sur deux ans (prévision conjoncture STATEC 2023) : | D13: 0.028 | L13: Nom de la commune | M13: 1 | N13: 0
L14: AERENZDALL | M14: 2 | N14: 0
B15: 0. | C15: =CONCATENATE("Données à caractère général (année de référence ",$J$5,")") -> Données à caractère général (année de référence 2022) | L15: BEAUFORT | M15: 3 | N15: 0
L16: BECH | M16: 4 | N16: 0
C17: Commune : | L17: BECKERICH | M17: 5 | N17: 0
C18: Superficie (ha) : | D18: 0 | L18: BERDORF | M18: 6 | N18: 0
C19: =CONCATENATE("Population résidente (au 31 décembre ",$J$5,") :") -> Population résidente (au 31 décembre 2022) : | D19: 0 | L19: BERTRANGE | M19: 7 | N19: 0
L20: BETTEMBOURG | M20: 8 | N20: 0
C21: Evacuation des entités privées et publiques internes et collectée par l'infrastructure communale, tout secteur confondu NOTA BENE : | D21: Provenances internes (m3/an) | L21: BETTENDORF | M21: 9 | N21: 0
C22: - quantité d'eau évacuée : | L22: BETZDORF | M22: 10 | N22: 0
L23: BISSEN | M23: 11 | N23: 0
C24: Evacuation des entités externes et collectée par l'infrastructure communale NOTA BENE : | D24: Provenances externes (m3/an) | L24: BIWER | M24: 12 | N24: 0
C25: - quantité d'eau évacuée : | L25: BOULAIDE | M25: 13 | N25: 0
C26: Quantité d'eau totale collectée par l'infrastructure communale : | D26: =D25+D22 -> 0 | L26: BOURSCHEID | M26: 14 | N26: 0
L27: BOUS-WALDBREDIMUS | M27: 15 | N27: 0
C28: Evacuation vers une infrastructure externe comunale ou syndicale se référer à NOTA BENE : | D28: Evacuations externes (m3/an) | L28: CLERVAUX | M28: 16 | N28: 0
C29: - quantité d'eau évacuée : | L29: COLMAR-BERG | M29: 17 | N29: 0
L30: CONSDORF | M30: 18 | N30: 0
C31: Situation des raccordements au réseau public d'évacuation/dépollution : | D31: Nombre des ménages/établissements (abonnés en unités) NOTA BENE | F31: Charge polluante moy. annuelle (EH m) NOTA BENE | I31: ® Le tableau EHm s'ouvre en arrière plan | L31: CONTERN | M31: 19 | N31: 0
C32: Provenances internes collectées par l'infrastructure communale, tout secteur confondu | D32: internes raccordés | E32: internes non raccordés | F32: interne raccordée | G32: interne non raccordée | L32: DALHEIM | M32: 20 | N32: 0
C33: NOTA BENE : | L33: DIEKIRCH | M33: 21 | N33: 0
L34: DIFFERDANGE | M34: 22 | N34: 1
C35: Provenances externes collectées par l'infrastructure communale NOTA BENE : | L35: DIPPACH | M35: 23 | N35: 0
L36: DUDELANGE | M36: 24 | N36: 1
C37: Charge polluante moyenne annuelle totale collectée par l'infrastructure communale | F37: =F35+F33 -> 0 | L37: ECHTERNACH | M37: 25 | N37: 0
L38: ELL | M38: 26 | N38: 0
L39: ERPELDANGE | M39: 27 | N39: 0
B40: 1. | C40: =CONCATENATE("Traitement des eaux évacuées de la commune (année de référence ",$J$5,")") -> Traitement des eaux évacuées de la commune (année de référence 2022) | L40: ESCH-SUR-ALZETTE | M40: 28 | N40: 1
L41: ESCH-SUR-SÛRE | M41: 29 | N41: 0
C42: Dépollution autonome par des AIDE : | D42: Nombre de STEP autonomes (unités) AIDE | E42: Capacité épuratoire autonome (EH r) AIDE | F42: Capacité épuratoire cédée à de tierces entités (EH r) AIDE | G42: Capacité épuratoire disponible pour la commune (EH r) AIDE | H42: Capacité épuratoire utilisée par la commune (EH r) AIDE | I42: Remarques | L42: ETTELBRUCK | M42: 30 | N42: 0
C43: - stations mécaniques AIDE : | G43: =E43-F43 -> 0 | L43: FEULEN | M43: 31 | N43: 0
C44: - stations biologiques AIDE : | G44: =E44-F44 -> 0 | L44: FISCHBACH | M44: 32 | N44: 0
C45: Total dépollution autonome: | G45: =SUM(G43:G44) -> 0 | H45: =SUM(H43:H44) -> 0 | L45: FLAXWEILER | M45: 33 | N45: 0
C46: Dépollution de la commune par des entités tierces : | L46: FRISANGE | M46: 34 | N46: 0
C47: - syndicats AIDE : | L47: GARNICH | M47: 35 | N47: 0
L48: GOESDORF | M48: 36 | N48: 0
L49: GREVENMACHER | M49: 37 | N49: 0
C50: - communes AIDE : | L50: GROSBOUS-WAHL | M50: 38 | N50: 0
L51: HABSCHT | M51: 39 | N51: 0
L52: HELPERKNAPP | M52: 40 | N52: 0
C53: Total dépollution par entités tierces : | G53: =SUM(G47:G52) -> 0 | H53: =SUM(H47:H52) -> 0 | L53: HEFFINGEN | M53: 41 | N53: 0
L54: HESPERANGE | M54: 42 | N54: 0
C55: Total dépollution de la commune : | D55: =SUM(D43:D44) -> 0 | E55: =SUM(E43:E44) -> 0 | F55: =SUM(F43:F44) -> 0 | G55: =G45+G53 -> 0 | H55: =H45+H53 -> 0 | L55: JUNGLINSTER | M55: 43 | N55: 0
G56: AIDE | H56: AIDE | L56: KÄERJENG | M56: 44 | N56: 0
C57: Réserve en infrastructures d'évacuation/dépollution de la commune AIDE : | H57: =G55-H55 -> 0 | L57: KAYL | M57: 45 | N57: 0
L58: KEHLEN | M58: 46 | N58: 0
L59: KIISCHPELT | M59: 47 | N59: 0
B60: 2. | C60: =CONCATENATE("Coût complet des services liés à l'évacuation et à la dépollution des eaux ",IF(M1=1,CONCATENATE("(année de référence ",J5,")"),CONCATENATE("(données prévisionnelles ",J7,")"))) -> Coût complet des services liés à l'évacuation et à la dépollution des eaux (année de référence 2022) | L60: KOERICH | M60: 48 | N60: 0
C61: coûts de fonctionnement (charges d’exploitation et d’entretien inscrites au budget ordinaire) + charges d’amortissement établies sur base du coût de renouvellement des investissements (charges de renouvellement théoriques) | L61: KOPSTAL | M61: 49 | N61: 0
L62: LAC DE LA HAUTE SURE | M62: 50 | N62: 0
B63: 2.1. | C63: Charges de fonctionnement, de maintenance et d'exploitation propres (infrastructures autonomes) | L63: LAROCHETTE | M63: 51 | N63: 0
C64: (budget ou compte ordinaire) | L64: LENNINGEN | M64: 52 | N64: 0
C65: Dépenses pour : REMARQUE : Indication non exhaustive des codes fonctionnels du Plan budgétaire normalisé. Merci de sigaler toute erreur de code. | E65: Total article budgétaire (€) | F65: Taux d'utilisation assainissement | G65: Frais fixes (€/an) | H65: Frais variables (€/an) | I65: Total des frais (€/an) | J65: Remarques | L65: LEUDELANGE | M65: 53 | N65: 0
C66: Achats de matières et de fournitures : | L66: LINTGEN | M66: 54 | N66: 0
C67: - fournitures pour l'entretien et le nettoyage des bâtiments (art. 3/520/603200) : | F67: 1 | H67: =E67*F67*IF($M$1=2,(1+$D$13)^(J7-J5),1) -> 0 | I67: =SUM(G67:H67) -> 0 | L67: LORENTZWEILER | M67: 55 | N67: 0
C68: - fournitures pour l'entretien des réseaux (art. 3/520/603200) : | F68: 1 | H68: =E68*F68*IF($M$1=2,(1+$D$13)^(J7-J5),1) -> 0 | I68: =SUM(G68:H68) -> 0 | L68: LUXEMBOURG | M68: 56 | N68: 1
C69: - facturation interne des consommations eau-électricité-gaz des bâtiments (art. 3/520/608111/X & 112/X & 113/X) : | F69: 1 | H69: =E69*F69*IF($M$1=2,(1+$D$13)^(J7-J5),1) -> 0 | I69: =SUM(G69:H69) -> 0 | L69: MAMER | M69: 57 | N69: 0
C70: - frais de consommation électrique des infrastructures et des réseaux (art. 3/520/608112) : | F70: 1 | H70: =E70*F70*IF($M$1=2,(1+$D$13)^(J7-J5),1) -> 0 | I70: =SUM(G70:H70) -> 0 | L70: MANTERNACH | M70: 58 | N70: 0
C71: - achats et fournitures divers (art. 3/520/608180) : | F71: 1 | G71: =0.5*E71*F71*IF($M$1=2,(1+$D$13)^(J7-J5),1) -> 0 | H71: =0.5*E71*F71*IF($M$1=2,(1+$D$13)^(J7-J5),1) -> 0 | I71: =SUM(G71:H71) -> 0 | L71: MERSCH | M71: 59 | N71: 0
C72: Services extérieurs : | L72: MERTERT | M72: 60 | N72: 0
C73: - frais d'entretien et de nettoyage des bâtiments (art. 3/520/612300) : | F73: 1 | H73: =E73*F73*IF($M$1=2,(1+$D$13)^(J7-J5),1) -> 0 | I73: =SUM(G73:H73) -> 0 | L73: MERTZIG | M73: 61 | N73: 0
C74: - frais d'assurances (incendie, responsabilité civile, etc) (art. 3/520/614xxx) : | F74: 1 | G74: =E74*F74*IF($M$1=2,(1+$D$13)^(J7-J5),1) -> 0 | I74: 0 | L74: MONDERCANGE | M74: 62 | N74: 0
C75: - frais d'entretien des véhicules automoteurs (art. 3/520/61223x) : | F75: 1 | H75: =E75*F75*IF($M$1=2,(1+$D$13)^(J7-J5),1) -> 0 | I75: 0 | L75: MONDORF-LES-BAINS | M75: 63 | N75: 0
C76: - frais de services administratives et techniques (art. 3/520/61213x) : | F76: 1 | H76: =E76*F76*IF($M$1=2,(1+$D$13)^(J7-J5),1) -> 0 | I76: 0 | L76: NIEDERANVEN | M76: 64 | N76: 0
C77: - frais d'entretien des réseaux et des stations d'épuration (art. 3/520/603200) NOTA BENE : | F77: 1 | H77: =E77*F77*IF($M$1=2,(1+$D$13)^(J7-J5),1) -> 0 | I77: 0 | L77: NOMMERN | M77: 65 | N77: 0
C78: - frais d'évacuation des boues d'épuration (art. 3/520/6184xx) : | F78: 1 | H78: =E78*F78*IF($M$1=2,(1+$D$13)^(J7-J5),1) -> 0 | I78: 0 | L78: PARC HOSINGEN | M78: 66 | N78: 0
C79: - frais d'enlèvement-recyclage-destruction des ordures (art. 3/520/6183xx) : | F79: 1 | H79: =E79*F79*IF($M$1=2,(1+$D$13)^(J7-J5),1) -> 0 | I79: 0 | L79: PETANGE | M79: 67 | N79: 1
C80: - frais d'outillage et de matériel roulant (3/520/6122xx) : | F80: 1 | H80: =E80*F80*IF($M$1=2,(1+$D$13)^(J7-J5),1) -> 0 | I80: 0 | L80: PREIZERDAUL | M80: 68 | N80: 0
C81: - frais pour prestations effectuées par d'autres services communaux (3/520/61218xx) : | F81: 1 | G81: =0.5*E81*F81*IF($M$1=2,(1+$D$13)^(J7-J5),1) -> 0 | H81: =0.5*E81*F81*IF($M$1=2,(1+$D$13)^(J7-J5),1) -> 0 | I81: 0 | L81: PUTSCHEID | M81: 69 | N81: 0
C82: Frais de personnel - rémunérations : | L82: RAMBROUCH | M82: 70 | N82: 0
C83: - frais du personnel propre du service (art. 3/520/621xxx) AIDE : | F83: 1 | G83: =E83*F83*IF($M$1=2,(1+$D$13)^(J7-J5),1) -> 0 | I83: =SUM(G83:H83) -> 0 | L83: RECKANGE-SUR-MESS | M83: 71 | N83: 0
C84: - frais du personnel ventilé d'autres services communaux (art. 3/520/621xxx) AIDE : | F84: 1 | G84: =E84*F84*IF($M$1=2,(1+$D$13)^(J7-J5),1) -> 0 | I84: =SUM(G84:H84) -> 0 | L84: REDANGE/ATTERT | M84: 72 | N84: 0
C85: - frais divers (3/520/62188xx) : | F85: 1 | G85: =0.5*E85*F85*IF($M$1=2,(1+$D$13)^(J7-J5),1) -> 0 | H85: =0.5*E85*F85*IF($M$1=2,(1+$D$13)^(J7-J5),1) -> 0 | I85: =SUM(G85:H85) -> 0 | L85: REISDORF | M85: 73 | N85: 0
C86: Amortissement charroi et immobilier : | G86: ='Amortissement charroi et immob.'!O77 -> 0 | I86: =SUM(G86:H86) -> 0 | L86: REMICH | M86: 74 | N86: 0
C87: =CONCATENATE("Total des charges hors amortissement des infrastructures et taxe de rejet ",IF(K1=1,CONCATENATE("(année de référence ",J5,") :"),CONCATENATE("(données prévisionnelles ",J7,") :"))) -> Total des charges hors amortissement des infrastructures et taxe de rejet (données prévisionnelles 2024) : | G87: =SUM(G66:G86) -> 0 | H87: =SUM(H66:H85) -> 0 | I87: =SUM(I66:I86) -> 0 | L87: ROESER | M87: 75 | N87: 0
L88: ROSPORT-MOMPACH | M88: 76 | N88: 0
C89: Clef de répartition des charges de fonctionnement et d'exploitation : | D89: Amort. infrastruct. (€/an) | E89: Ratio (%) | L89: RUMELANGE | M89: 77 | N89: 1
L90: SAEUL | M90: 78 | N90: 0
C91: Charges d'amortissement totales des infrastructures AIDE : | D91: ='Amortissement infrastructures'!P307 -> 0 | E91: 1 | L91: SANDWEILER | M91: 79 | N91: 0
C92: Charges d'amortissement non opposables AIDE : | D92: =-'Amortissement infrastructures'!R307 -> 0 | E92: =D92/D91 ->  | L92: SANEM | M92: 80 | N92: 0
C93: Charges d'amortissement imputables : | D93: =D91+D92 -> 0 | E93: =D93/D91 ->  | G93: =G87*E93 ->  | H93: =H87*E93 ->  | I93: =I87*E93 ->  | L93: SCHENGEN | M93: 81 | N93: 0
C94: Charges d'amortissement réduites AIDE : | G94: =D93/2 -> 0 | I94: =G94 -> 0 | L94: SCHIEREN | M94: 82 | N94: 0
C95: Charges taxe de rejet des eaux résiduaires AIDE : | H95: =(D26-D29)*0.11 -> 0 | I95: =H95 -> 0 | L95: SCHIFFLANGE | M95: 83 | N95: 1
C96: Charges imputables de fonctionnement, de maintenance et d'exploitation ………………………………………... | E96: =CONCATENATE(IF(M1=1,CONCATENATE("(année de référence ",J5,") :"),CONCATENATE("(données prévisionnelles ",J7,") :"))) -> (année de référence 2022) : | G96: =SUM(G93:G95) ->  | H96: =SUM(H93:H95) ->  | I96: =SUM(I93:I95) ->  | L96: SCHUTTRANGE | M96: 84 | N96: 0
L97: STADTBREDIMUS | M97: 85 | N97: 0
B98: 2.2. | C98: Charges de l'évacuation et de la dépollution des eaux usées de la commune effectuées par des entités tierces (infrastructures syndicales) | L98: STEINFORT | M98: 86 | N98: 0
C99: Budget ou compte ordinaire de l'année de référence | L99: STEINSEL | M99: 87 | N99: 0
C100: Evacuation/dépollution suivant factures à partir de NOTA BENE : | G100: Amort. infrastruct. (€/an TTC) | H100: Frais de fonct. (€/an TTC) | I100: Coûts totaux (€/an TTC) | J100: Remarques | L100: STRASSEN | M100: 88 | N100: 0
C101: - syndicats (art. 3/520/648211/S) : | L101: TANDEL | M101: 89 | N101: 0
C102: =IF(C48="","",C48) ->  | I102: =(G102+H102)*IF($M$1=2,(1+$D$13)^(J7-J5),1) -> 0 | L102: TROISVIERGES | M102: 90 | N102: 0
C103: =IF(C49="","",C49) ->  | I103: =(G103+H103)*IF($M$1=2,(1+$D$13)^(J7-J5),1) -> 0 | L103: USELDANGE | M103: 91 | N103: 0
C104: - communes (art. 3/520/648211/C) : | L104: VALLEE DE L'ERNZ | M104: 92 | N104: 0
C105: =IF(C51="","",C51) ->  | I105: =(G105+H105)*IF($M$1=2,(1+$D$13)^(J7-J5),1) -> 0 | L105: VIANDEN | M105: 93 | N105: 0
C106: =IF(C52="","",C52) ->  | I106: =(G106+H106)*IF($M$1=2,(1+$D$13)^(J7-J5),1) -> 0 | L106: VICHTEN | M106: 94 | N106: 0
G107: =SUM(G102:G106)*IF($M$1=2,(1+$D$13)^(J7-J5),1) -> 0 | H107: =SUM(H102:H106)*IF($M$1=2,(1+$D$13)^(J7-J5),1) -> 0 | I107: =SUM(I102:I106) -> 0 | L107: WALDBILLIG | M107: 96 | N107: 0
L108: WALFERDANGE | M108: 98 | N108: 0
C109: Coûts imputables des services liées à l'évacuation et à la dépollution des eaux en €/an ……………………... | E109: =CONCATENATE(IF(M1=1,CONCATENATE("(année de référence ",J5,") :"),CONCATENATE("(données prévisionnelles ",J7,") :"))) -> (année de référence 2022) : | G109: =G96+(I102+I103)*0.65+(I105+I106)*0.75 ->  | H109: =H96+(I102+I103)*0.35+(I105+I106)*0.25 ->  | I109: =I96+I107 ->  | L109: WEILER-LA-TOUR | M109: 99 | N109: 0
L110: WEISWAMPACH | M110: 100 | N110: 0
C111: Coût complet des services liées à l'évacuation et à la dépollution des eaux en €/an …………………………... | E111: =CONCATENATE(IF(M1=1,CONCATENATE("(année de référence ",J5,") :"),CONCATENATE("(données prévisionnelles ",J7,") :"))) -> (année de référence 2022) : | I111: =I109-D92+(D93-G94)-I87*E92 ->  | L111: WILTZ | M111: 101 | N111: 0
L112: WINCRANGE | M112: 102 | N112: 0
L113: WINSELER | M113: 103 | N113: 0
B114: 3. | C114: =CONCATENATE("Recettes relatives à l'évacuation et à la dépollution des eaux résiduaires ",IF(M1=1,CONCATENATE("(année de référence ",J5,")"),CONCATENATE("(données prévisionnelles ",J7,")"))) -> Recettes relatives à l'évacuation et à la dépollution des eaux résiduaires (année de référence 2022) | L114: WORMELDANGE | M114: 104 | N114: 0
C115: Budget ou compte ordinaire(articles 7011)
B116: 3.1. | C116: Evacuation/dépollution des eaux usées provenant d'une entité externe AIDE | E116: Recettes fixes (€/an) | F116: Recettes variables (€/an) | G116: Total des recettes (€/an) | H116: Remarques | L116: Tableau des EH moyens annuels
C118: - syndicats :
G119: =(E119+F119)*IF($M$1=2,(1+$D$13)^(J7-J5),1) -> 0
G120: =(E120+F120)*IF($M$1=2,(1+$D$13)^(J7-J5),1) -> 0
C121: - communes :
G122: =(E122+F122)*IF($M$1=2,(1+$D$13)^(J7-J5),1) -> 0
G123: =(E123+F123)*IF($M$1=2,(1+$D$13)^(J7-J5),1) -> 0
C124: Total des recettes pour évacuation/dépollution des eaux usées provenant d'une entité externe (€/an) : | E124: =SUM(E119:E123)*IF($M$1=2,(1+D13)^(J7-J5),1) -> 0 | F124: =SUM(F119:F123)*IF($M$1=2,(1+D13)^(J7-J5),1) -> 0 | G124: =SUM(G119:G123) -> 0
B125: 3.2. | C125: Evacuation/dépollution d'eaux usées générées par les abonnées de la commune
C126: - secteur des ménages : | G126: =(E126+F126)*IF($M$1=2,(1+$D$13)^(J7-J5),1) -> 0
C127: - secteur industriel : | G127: =(E127+F127)*IF($M$1=2,(1+$D$13)^(J7-J5),1) -> 0
C128: - secteur agricole : | G128: =(E128+F128)*IF($M$1=2,(1+$D$13)^(J7-J5),1) -> 0
C129: - secteur HORESCA : | G129: =(E129+F129)*IF($M$1=2,(1+$D$13)^(J7-J5),1) -> 0
C130: Total des recettes pour évacuation/dépollution des eaux usées générées par les abonnées internes (€/an) : | E130: =SUM(E126:E129)*IF($M$1=2,(1+D13)^(J7-J5),1) -> 0 | F130: =SUM(F126:F129)*IF($M$1=2,(1+D13)^(J7-J5),1) -> 0 | G130: =SUM(G126:G129) -> 0
B131: 3.3. | C131: Autres recettes
G132: =(E132+F132)*IF($M$1=2,(1+$D$13)^(J7-J5),1) -> 0
G133: =(E133+F133)*IF($M$1=2,(1+$D$13)^(J7-J5),1) -> 0
G134: =(E134+F134)*IF($M$1=2,(1+$D$13)^(J7-J5),1) -> 0
C135: Total autres recettes (€/an) : | E135: =SUM(E132:E134)*IF($M$1=2,(1+D13)^(J7-J5),1) -> 0 | F135: =SUM(F132:F134)*IF($M$1=2,(1+D13)^(J7-J5),1) -> 0 | G135: =SUM(G132:G134) -> 0
C136: =CONCATENATE("Total des recettes en €/an ",IF(M1=1,CONCATENATE("(année de référence ",J5,") :"),CONCATENATE("(données prévisionnelles ",J7,") :"))) -> Total des recettes en €/an (année de référence 2022) : | E136: =E130+E124+E135 -> 0 | F136: =F130+F124+F135 -> 0 | G136: =G130+G124+G135 -> 0
B139: 4. | C139: =CONCATENATE("Résultat comptable pour l'évacuation et la dépollution des eaux résiduaires collectées par l'infrastructure communale ",IF(M1=1,CONCATENATE("(année de référence ",J5,")"),CONCATENATE("(données prévisionnelles ",J7,")"))) -> Résultat comptable pour l'évacuation et la dépollution des eaux résiduaires collectées par l'infrastructure communale (année de référence 2022)
B141: 4.1. | C141: Calcul du coût imputable de l'eau usée
E142: Valeurs fixes | F142: Valeurs variables | G142: Valeurs totales
C143: Coûts imputables des services liées à l'évacuation et à la dépollution des eaux résiduaires (€/an) NOTA BENE : | E143: =G109-E135 ->  | F143: =H109-F135 ->  | G143: =I109-G135 -> 
C144: Total des charges polluantes moyennes annuelles collectées par l'infrastructure communale (EHm) : | E144: =F37 -> 0
C145: Coût fixe par EH moyen annuel (€/EHm/an) : | E145: =E143/E144 -> 
C146: Quantité totale d'eau déversée dans le réseau public d'évacuation/dépollution (m3/an) : | F146: =D26 -> 0 | G146: =F146 -> 0
C147: Coût variable par m3 d'eau usée (€/m3) : | F147: =F143/F146 -> 
C148: Coût global par m3 d'eau usée (€/m3) AIDE : | G148: =G143/G146 -> 
B151: 5. | C151: =CONCATENATE("Simulation pour l'application de prix fixes et variables relatifs à l'évacuation et la dépollution des eaux résiduaires pour l'année ",J7) -> Simulation pour l'application de prix fixes et variables relatifs à l'évacuation et la dépollution des eaux résiduaires pour l'année 2024
C152: =CONCATENATE("CHOISIR L'OPTION « DONNEES PREVISIONNELLES ",J7," » DANS LE BANDEAU DE TITRE") -> CHOISIR L'OPTION « DONNEES PREVISIONNELLES 2024 » DANS LE BANDEAU DE TITRE
B154: 5.1. | C154: Approche « coûts rééquilibrés suivant circulaire ministérielle n°2909 »
C156: REMARQUE : Les prix proposés ci-après tiennent compte des consignes de rééquilibrage du coût de revient de l'eau telles que communiquées par la circulaire ministérielle n°2909 du 28 mars 2011. Ce rééquilibrage élimine l'effet pénalisant des conditions géographiques locales (élimination partielle de l'amortissement des infrastructures d'évacuation moyennant la prise en compte de la moitié de l'amortissement local renseigné) et instaure le plafonnement du coût global par m3 opposable aux consommateurs afin de limiter les conséquences économiques des coûts sur les tarifs. Ce plafond est indexé sur l'échelle mobile des salaires. D'autre part, la tarification rééquilibrée préconise un partage fixe / variable standardisé pour les différents secteurs afin de tenir compte des coûts spécifiques que génèrent les activités de ces secteurs.
C158: Coût imputable rééquilibré : | D158: 100% = | F158: Variable : Fixe
C159: - coût global indexé par m3 d'eau usée : | D159: =IF(G148>M5,M5,G148) ->  | F159: =F143/G143 -> 
C160: - coût global indexé par EHm : | D160: =IF(G148>M5,(M5*G146)/E144,G143/E144) ->  | F160: =E143/G143 -> 
C162: Partage fixe/variable non corrigé : | D162: Fixe corresp. | E162: Var. > x € | F162: Var. > x € | G162: Var. standard. | H162: % variable
C163: - secteur des ménages : | D163: =(1-E163/$D$159)*$D$160 ->  | E163: =ROUND(ROUND(F163/1/10^(ROUNDDOWN((LOG(F163/1)),0))/IF(F163/1/10^(ROUNDDOWN((LOG(F163/1)),0))<0.5,0.01,IF(F163/1/10^(ROUNDDOWN((LOG(F163/1)),0))<1.2,0.02,IF(F163/1/10^(ROUNDDOWN((LOG(F163/1)),0))<2.5,0.05,IF(F163/1/10^(ROUNDDOWN((LOG(F163/1)),0))<5,0.1,0.2)))),0)*IF(F163/1/10^(ROUNDDOWN((LOG(F163/1)),0))<0.5,0.01,IF(F163/1/10^(ROUNDDOWN((LOG(F163/1)),0))<1.2,0.02,IF(F163/1/10^(ROUNDDOWN((LOG(F163/1)),0))<2.5,0.05,IF(F163/1/10^(ROUNDDOWN((LOG(F163/1)),0))<5,0.1,0.2))))*10^(ROUNDDOWN((LOG(F163/1)),0)),2) ->  | F163: =IF(G163<$G$170,IF($G$170>$D$159,$D$159,$G$170),G163) ->  | G163: =D159*H163/100 ->  | H163: 80
C164: - secteur industriel : | D164: =(1-E164/$D$159)*$D$160 ->  | E164: =ROUND(ROUND(F164/1/10^(ROUNDDOWN((LOG(F164/1)),0))/IF(F164/1/10^(ROUNDDOWN((LOG(F164/1)),0))<0.5,0.01,IF(F164/1/10^(ROUNDDOWN((LOG(F164/1)),0))<1.2,0.02,IF(F164/1/10^(ROUNDDOWN((LOG(F164/1)),0))<2.5,0.05,IF(F164/1/10^(ROUNDDOWN((LOG(F164/1)),0))<5,0.1,0.2)))),0)*IF(F164/1/10^(ROUNDDOWN((LOG(F164/1)),0))<0.5,0.01,IF(F164/1/10^(ROUNDDOWN((LOG(F164/1)),0))<1.2,0.02,IF(F164/1/10^(ROUNDDOWN((LOG(F164/1)),0))<2.5,0.05,IF(F164/1/10^(ROUNDDOWN((LOG(F164/1)),0))<5,0.1,0.2))))*10^(ROUNDDOWN((LOG(F164/1)),0)),2) ->  | F164: =IF(G164<$G$170,IF($G$170>$D$159,$D$159,$G$170),G164) ->  | G164: =D159*H164/100 ->  | H164: 30
C165: - secteur agricole : | G165: =D159*H165/100 ->  | H165: 40
C166: - secteur HORECA : | G166: =D159*H166/100 ->  | H166: 55
C168: Tarification rééquilibrée NOTA BENE : | D168: Part fixe (€/EHm/an hTVA) | E168: Part variable (€/m3 hTVA) | G168: Prix plancher (€/m3) AIDE
C170: - secteur des ménages : | D170: =ROUND(ROUND(D163/1/10^(ROUNDDOWN((LOG(D163/1)),0))/IF(D163/1/10^(ROUNDDOWN((LOG(D163/1)),0))<0.5,0.01,IF(D163/1/10^(ROUNDDOWN((LOG(D163/1)),0))<1.2,0.02,IF(D163/1/10^(ROUNDDOWN((LOG(D163/1)),0))<2.5,0.05,IF(D163/1/10^(ROUNDDOWN((LOG(D163/1)),0))<5,0.1,0.2)))),0)*IF(D163/1/10^(ROUNDDOWN((LOG(D163/1)),0))<0.5,0.01,IF(D163/1/10^(ROUNDDOWN((LOG(D163/1)),0))<1.2,0.02,IF(D163/1/10^(ROUNDDOWN((LOG(D163/1)),0))<2.5,0.05,IF(D163/1/10^(ROUNDDOWN((LOG(D163/1)),0))<5,0.1,0.2))))*10^(ROUNDDOWN((LOG(D163/1)),0)),2) ->  | E170: =E163 -> 
C171: - secteur industriel : | D171: =ROUND(ROUND(D164/1/10^(ROUNDDOWN((LOG(D164/1)),0))/IF(D164/1/10^(ROUNDDOWN((LOG(D164/1)),0))<0.5,0.01,IF(D164/1/10^(ROUNDDOWN((LOG(D164/1)),0))<1.2,0.02,IF(D164/1/10^(ROUNDDOWN((LOG(D164/1)),0))<2.5,0.05,IF(D164/1/10^(ROUNDDOWN((LOG(D164/1)),0))<5,0.1,0.2)))),0)*IF(D164/1/10^(ROUNDDOWN((LOG(D164/1)),0))<0.5,0.01,IF(D164/1/10^(ROUNDDOWN((LOG(D164/1)),0))<1.2,0.02,IF(D164/1/10^(ROUNDDOWN((LOG(D164/1)),0))<2.5,0.05,IF(D164/1/10^(ROUNDDOWN((LOG(D164/1)),0))<5,0.1,0.2))))*10^(ROUNDDOWN((LOG(D164/1)),0)),2) ->  | E171: =E164 -> 
C172: - secteur agricole : | D172: =ROUND(ROUND(D165/1/10^(ROUNDDOWN((LOG(D165/1)),0))/IF(D165/1/10^(ROUNDDOWN((LOG(D165/1)),0))<0.5,0.01,IF(D165/1/10^(ROUNDDOWN((LOG(D165/1)),0))<1.2,0.02,IF(D165/1/10^(ROUNDDOWN((LOG(D165/1)),0))<2.5,0.05,IF(D165/1/10^(ROUNDDOWN((LOG(D165/1)),0))<5,0.1,0.2)))),0)*IF(D165/1/10^(ROUNDDOWN((LOG(D165/1)),0))<0.5,0.01,IF(D165/1/10^(ROUNDDOWN((LOG(D165/1)),0))<1.2,0.02,IF(D165/1/10^(ROUNDDOWN((LOG(D165/1)),0))<2.5,0.05,IF(D165/1/10^(ROUNDDOWN((LOG(D165/1)),0))<5,0.1,0.2))))*10^(ROUNDDOWN((LOG(D165/1)),0)),2) -> 
C173: - secteur HORECA : | D173: =ROUND(ROUND(D166/1/10^(ROUNDDOWN((LOG(D166/1)),0))/IF(D166/1/10^(ROUNDDOWN((LOG(D166/1)),0))<0.5,0.01,IF(D166/1/10^(ROUNDDOWN((LOG(D166/1)),0))<1.2,0.02,IF(D166/1/10^(ROUNDDOWN((LOG(D166/1)),0))<2.5,0.05,IF(D166/1/10^(ROUNDDOWN((LOG(D166/1)),0))<5,0.1,0.2)))),0)*IF(D166/1/10^(ROUNDDOWN((LOG(D166/1)),0))<0.5,0.01,IF(D166/1/10^(ROUNDDOWN((LOG(D166/1)),0))<1.2,0.02,IF(D166/1/10^(ROUNDDOWN((LOG(D166/1)),0))<2.5,0.05,IF(D166/1/10^(ROUNDDOWN((LOG(D166/1)),0))<5,0.1,0.2))))*10^(ROUNDDOWN((LOG(D166/1)),0)),2) -> 
B175: 5.2. | C175: Approche « prix variables proposés »
D176: Part fixe correspondante (€/EHm/an hTVA ) | E176: Part variable proposée (€/m3 hTVA )
C177: Prix variables proposés pour les différents secteurs NOTA BENE :
F178: -5ƿ% | G178: +5ƿ%
C179: - secteur des ménages : | D179: =ROUND(ROUND(D185/1/10^(ROUNDDOWN((LOG(D185/1)),0))/IF(D185/1/10^(ROUNDDOWN((LOG(D185/1)),0))<0.5,0.01,IF(D185/1/10^(ROUNDDOWN((LOG(D185/1)),0))<1.2,0.02,IF(D185/1/10^(ROUNDDOWN((LOG(D185/1)),0))<2.5,0.05,IF(D185/1/10^(ROUNDDOWN((LOG(D185/1)),0))<5,0.1,0.2)))),0)*IF(D185/1/10^(ROUNDDOWN((LOG(D185/1)),0))<0.5,0.01,IF(D185/1/10^(ROUNDDOWN((LOG(D185/1)),0))<1.2,0.02,IF(D185/1/10^(ROUNDDOWN((LOG(D185/1)),0))<2.5,0.05,IF(D185/1/10^(ROUNDDOWN((LOG(D185/1)),0))<5,0.1,0.2))))*10^(ROUNDDOWN((LOG(D185/1)),0)),2) ->  | E179: =E185 -> 
C180: - secteur industriel : | D180: =ROUND(ROUND(D186/1/10^(ROUNDDOWN((LOG(D186/1)),0))/IF(D186/1/10^(ROUNDDOWN((LOG(D186/1)),0))<0.5,0.01,IF(D186/1/10^(ROUNDDOWN((LOG(D186/1)),0))<1.2,0.02,IF(D186/1/10^(ROUNDDOWN((LOG(D186/1)),0))<2.5,0.05,IF(D186/1/10^(ROUNDDOWN((LOG(D186/1)),0))<5,0.1,0.2)))),0)*IF(D186/1/10^(ROUNDDOWN((LOG(D186/1)),0))<0.5,0.01,IF(D186/1/10^(ROUNDDOWN((LOG(D186/1)),0))<1.2,0.02,IF(D186/1/10^(ROUNDDOWN((LOG(D186/1)),0))<2.5,0.05,IF(D186/1/10^(ROUNDDOWN((LOG(D186/1)),0))<5,0.1,0.2))))*10^(ROUNDDOWN((LOG(D186/1)),0)),2) ->  | E180: =E186 -> 
C181: - secteur agricole : | D181: =ROUND(ROUND(D187/1/10^(ROUNDDOWN((LOG(D187/1)),0))/IF(D187/1/10^(ROUNDDOWN((LOG(D187/1)),0))<0.5,0.01,IF(D187/1/10^(ROUNDDOWN((LOG(D187/1)),0))<1.2,0.02,IF(D187/1/10^(ROUNDDOWN((LOG(D187/1)),0))<2.5,0.05,IF(D187/1/10^(ROUNDDOWN((LOG(D187/1)),0))<5,0.1,0.2)))),0)*IF(D187/1/10^(ROUNDDOWN((LOG(D187/1)),0))<0.5,0.01,IF(D187/1/10^(ROUNDDOWN((LOG(D187/1)),0))<1.2,0.02,IF(D187/1/10^(ROUNDDOWN((LOG(D187/1)),0))<2.5,0.05,IF(D187/1/10^(ROUNDDOWN((LOG(D187/1)),0))<5,0.1,0.2))))*10^(ROUNDDOWN((LOG(D187/1)),0)),2) -> 
C182: - secteur HORECA : | D182: =ROUND(ROUND(D188/1/10^(ROUNDDOWN((LOG(D188/1)),0))/IF(D188/1/10^(ROUNDDOWN((LOG(D188/1)),0))<0.5,0.01,IF(D188/1/10^(ROUNDDOWN((LOG(D188/1)),0))<1.2,0.02,IF(D188/1/10^(ROUNDDOWN((LOG(D188/1)),0))<2.5,0.05,IF(D188/1/10^(ROUNDDOWN((LOG(D188/1)),0))<5,0.1,0.2)))),0)*IF(D188/1/10^(ROUNDDOWN((LOG(D188/1)),0))<0.5,0.01,IF(D188/1/10^(ROUNDDOWN((LOG(D188/1)),0))<1.2,0.02,IF(D188/1/10^(ROUNDDOWN((LOG(D188/1)),0))<2.5,0.05,IF(D188/1/10^(ROUNDDOWN((LOG(D188/1)),0))<5,0.1,0.2))))*10^(ROUNDDOWN((LOG(D188/1)),0)),2) ->  | G182: 1
C184: Part fixe correspondante non corrigée (€/EHm/an) : | D184: Fixe corresp. | E184: Var. arrondie | F184: Var. standard. | G184: % variable
C185: - secteur des ménages : | D185: =(1-E185/$D$159)*$D$160 ->  | E185: =ROUND(ROUND(F185/1/10^(ROUNDDOWN((LOG(F185/1)),0))/IF(F185/1/10^(ROUNDDOWN((LOG(F185/1)),0))<0.5,0.01,IF(F185/1/10^(ROUNDDOWN((LOG(F185/1)),0))<1.2,0.02,IF(F185/1/10^(ROUNDDOWN((LOG(F185/1)),0))<2.5,0.05,IF(F185/1/10^(ROUNDDOWN((LOG(F185/1)),0))<5,0.1,0.2)))),0)*IF(F185/1/10^(ROUNDDOWN((LOG(F185/1)),0))<0.5,0.01,IF(F185/1/10^(ROUNDDOWN((LOG(F185/1)),0))<1.2,0.02,IF(F185/1/10^(ROUNDDOWN((LOG(F185/1)),0))<2.5,0.05,IF(F185/1/10^(ROUNDDOWN((LOG(F185/1)),0))<5,0.1,0.2))))*10^(ROUNDDOWN((LOG(F185/1)),0)),2) ->  | F185: =$D$159*G185/100 ->  | G185: 80
C186: - secteur industriel : | D186: =(1-E186/$D$159)*$D$160 ->  | E186: =ROUND(ROUND(F186/1/10^(ROUNDDOWN((LOG(F186/1)),0))/IF(F186/1/10^(ROUNDDOWN((LOG(F186/1)),0))<0.5,0.01,IF(F186/1/10^(ROUNDDOWN((LOG(F186/1)),0))<1.2,0.02,IF(F186/1/10^(ROUNDDOWN((LOG(F186/1)),0))<2.5,0.05,IF(F186/1/10^(ROUNDDOWN((LOG(F186/1)),0))<5,0.1,0.2)))),0)*IF(F186/1/10^(ROUNDDOWN((LOG(F186/1)),0))<0.5,0.01,IF(F186/1/10^(ROUNDDOWN((LOG(F186/1)),0))<1.2,0.02,IF(F186/1/10^(ROUNDDOWN((LOG(F186/1)),0))<2.5,0.05,IF(F186/1/10^(ROUNDDOWN((LOG(F186/1)),0))<5,0.1,0.2))))*10^(ROUNDDOWN((LOG(F186/1)),0)),2) ->  | F186: =IF(($D$159*G186/100)>F187,F187,$D$159*G186/100) ->  | G186: 35
C187: - secteur agricole : | F187: =$D$159*G187/100 ->  | G187: 40
C188: - secteur HORECA : | G188: 55

Sheet Amortissement infrastructures
A1: 18 / 04 / 2023 | U1: Zone urbaine | V1: ='Coût de l''eau usée'!M3 -> 0
B2: Amortissement des infrastructures d'évacuation et de dépollution | M2: =IF('Coût de l''eau usée'!$M$1=1,'Coût de l''eau usée'!$G$5,'Coût de l''eau usée'!$H$7) -> Année de référence (comptes) : | S2: =IF('Coût de l''eau usée'!$M$1=1,'Coût de l''eau usée'!$J$5,'Coût de l''eau usée'!$J$7) -> 2022 | U2: Zone rurale | V2: ='Coût de l''eau usée'!M4 -> 0
U3: Capac. épuratoire autonome | V3: ='Coût de l''eau usée'!E55 -> 0
U4: Capac. épuratoire utilisée | V4: ='Coût de l''eau usée'!H45 -> 0
B6: 0. | C6: Taux à base du calcul de l'amortissement | S6: Aide
C8: =CONCATENATE("Indice moyen annuel des prix de la construction de l'année ",'Coût de l''eau usée'!$J$5," (donnée STATEC) :") -> Indice moyen annuel des prix de la construction de l'année 2022 (donnée STATEC) : | R8: 1037.72
C10: Variation annuelle estimée de l'indice des prix de la construction : | R10: ='Coût de l''eau usée'!D13 -> 0.028
C12: =CONCATENATE("Indice moyen annuel estimé des prix de la construction de l'année ",'Coût de l''eau usée'!$J$7," :") -> Indice moyen annuel estimé des prix de la construction de l'année 2024 : | R12: =R8*(1+R10)^('Coût de l''eau usée'!J7-'Coût de l''eau usée'!J5) -> 1096.645892
C14: Taux de TVA appliqué aux travaux d'infrastructures d'évacuation et de dépollution : | R14: 0.17
B17: 1. | C17: Collecteurs posés en zone verte | S17: Aide
B19: 1.1. | C19: Béton armé | F19: Eau usée | G19: Eau mixte | H19: Eau pluviale | K19: Durée de vie utile : | M19: 75 | N19: ans | P19: Charges totales | R19: Non imputables
C21: Diamètre nominal | F21: Longueur (m) | G21: Longueur (m) | H21: Longueur (m) | I21: Valeur unitaire (€/m) | K21: Valeur totale (€) | M21: Taux d'amortissement | P21: Amortissement annuel (€) | R21: Amortissement annuel (€)
C22: ≤ | D22: 300 | E22: mm | F22: 0 | G22: 0 | H22: 0 | I22: x | J22: =(110+D22*0.75)/600.88*IF('Coût de l''eau usée'!$M$1=1,$R$8,$R$12) -> 578.5451338 | K22: = | L22: =(F22+G22+H22)*J22 -> 0 | M22: x | N22: =ROUND((1/$M$19*10000)/5,0)*5/100 -> 1.35 | O22: % | P22: = | Q22: =L22*N22/100 -> 0 | R22: = | S22: =IF((G22*J22-G22*$J$22+H22*J22)*N22/100<0,0,(G22*J22-G22*$J$22+H22*J22)*N22/100) -> 0
D23: 400 | E23: mm | F23: 0 | G23: 0 | H23: 0 | I23: x | J23: =(110+D23*0.75)/600.88*IF('Coût de l''eau usée'!$M$1=1,$R$8,$R$12) -> 708.0701638 | K23: = | L23: =(F23+G23+H23)*J23 -> 0 | M23: x | N23: =ROUND((1/$M$19*10000)/5,0)*5/100 -> 1.35 | O23: % | P23: = | Q23: =L23*N23/100 -> 0 | R23: = | S23: =IF((G23*J23-G23*$J$22+H23*J23)*N23/100<0,0,(G23*J23-G23*$J$22+H23*J23)*N23/100) -> 0
D24: 500 | E24: mm | F24: 0 | G24: 0 | H24: 0 | I24: x | J24: =(110+D24*0.75)/600.88*IF('Coût de l''eau usée'!$M$1=1,$R$8,$R$12) -> 837.5951937 | K24: = | L24: 0 | M24: x | N24: 1.35 | O24: % | P24: = | Q24: 0 | R24: = | S24: 0
D25: 600 | E25: mm | F25: 0 | G25: 0 | H25: 0 | I25: x | J25: =(110+D25*0.75)/600.88*IF('Coût de l''eau usée'!$M$1=1,$R$8,$R$12) -> 967.1202237 | K25: = | L25: 0 | M25: x | N25: 1.35 | O25: % | P25: = | Q25: 0 | R25: = | S25: 0
D26: 700 | E26: mm | F26: 0 | G26: 0 | H26: 0 | I26: x | J26: =(110+D26*0.75)/600.88*IF('Coût de l''eau usée'!$M$1=1,$R$8,$R$12) -> 1096.645254 | K26: = | L26: 0 | M26: x | N26: 1.35 | O26: % | P26: = | Q26: 0 | R26: = | S26: 0
D27: 800 | E27: mm | F27: 0 | G27: 0 | H27: 0 | I27: x | J27: =(110+D27*0.75)/600.88*IF('Coût de l''eau usée'!$M$1=1,$R$8,$R$12) -> 1226.170284 | K27: = | L27: 0 | M27: x | N27: 1.35 | O27: % | P27: = | Q27: 0 | R27: = | S27: 0
D28: 900 | E28: mm | F28: 0 | G28: 0 | H28: 0 | I28: x | J28: =(110+D28*0.75)/600.88*IF('Coût de l''eau usée'!$M$1=1,$R$8,$R$12) -> 1355.695314 | K28: = | L28: 0 | M28: x | N28: 1.35 | O28: % | P28: = | Q28: 0 | R28: = | S28: 0
D29: 1000 | E29: mm | F29: 0 | G29: 0 | H29: 0 | I29: x | J29: =(110+D29*0.75)/600.88*IF('Coût de l''eau usée'!$M$1=1,$R$8,$R$12) -> 1485.220343 | K29: = | L29: 0 | M29: x | N29: 1.35 | O29: % | P29: = | Q29: 0 | R29: = | S29: 0
D30: 1100 | E30: mm | F30: 0 | G30: 0 | H30: 0 | I30: x | J30: =(110+D30*0.75)/600.88*IF('Coût de l''eau usée'!$M$1=1,$R$8,$R$12) -> 1614.745373 | K30: = | L30: 0 | M30: x | N30: 1.35 | O30: % | P30: = | Q30: 0 | R30: = | S30: 0
C31: ≥ | D31: 1200 | E31: mm | F31: 0 | G31: 0 | H31: 0 | I31: x | J31: =(110+D31*0.75)/600.88*IF('Coût de l''eau usée'!$M$1=1,$R$8,$R$12) -> 1744.270403 | K31: = | L31: 0 | M31: x | N31: 1.35 | O31: % | P31: = | Q31: 0 | R31: = | S31: 0
C32: Valeurs totales : | F32: =SUM(F22:F31) -> 0 | G32: =SUM(G22:G31) -> 0 | H32: =SUM(H22:H31) -> 0 | K32: =SUM(L22:L31) -> 0 | P32: =SUM(Q22:Q31) -> 0 | R32: =SUM(S22:S31) -> 0
B34: 1.2. | C34: Fonte ductile | K34: Durée de vie utile : | M34: 75 | N34: ans
C36: Diamètre nominal | F36: Longueur (m) | G36: Longueur (m) | H36: Longueur (m) | I36: Valeur unitaire (€/m) | K36: Valeur totale (€) | M36: Taux d'amortissement | P36: Amortissement annuel (€) | R36: Amortissement annuel (€)
C37: ≤ | D37: 200 | E37: mm | F37: 0 | G37: 0 | H37: 0 | I37: x | J37: =(120+D37*0.8)/600.88*IF('Coût de l''eau usée'!$M$1=1,$R$8,$R$12) -> 483.5601118 | K37: = | L37: =(F37+G37+H37)*J37 -> 0 | M37: x | N37: =ROUND((1/$M$34*10000)/5,0)*5/100 -> 1.35 | O37: % | P37: = | Q37: =L37*N37/100 -> 0 | R37: = | S37: =IF((G37*J37-G37*$J$22+H37*J37)*N37/100<0,0,(G37*J37-G37*$J$22+H37*J37)*N37/100) -> 0
D38: 250 | E38: mm | F38: 0 | G38: 0 | H38: 0 | I38: x | J38: =(120+D38*0.8)/600.88*IF('Coût de l''eau usée'!$M$1=1,$R$8,$R$12) -> 552.6401278 | K38: = | L38: =(F38+G38+H38)*J38 -> 0 | M38: x | N38: =ROUND((1/$M$34*10000)/5,0)*5/100 -> 1.35 | O38: % | P38: = | Q38: =L38*N38/100 -> 0 | R38: = | S38: =IF((G38*J38-G38*$J$22+H38*J38)*N38/100<0,0,(G38*J38-G38*$J$22+H38*J38)*N38/100) -> 0
D39: 300 | E39: mm | F39: 0 | G39: 0 | H39: 0 | I39: x | J39: =(120+D39*0.8)/600.88*IF('Coût de l''eau usée'!$M$1=1,$R$8,$R$12) -> 621.7201438 | K39: = | L39: 0 | M39: x | N39: 1.35 | O39: % | P39: = | Q39: 0 | R39: = | S39: 0
D40: 350 | E40: mm | F40: 0 | G40: 0 | H40: 0 | I40: x | J40: =(120+D40*0.8)/600.88*IF('Coût de l''eau usée'!$M$1=1,$R$8,$R$12) -> 690.8001598 | K40: = | L40: 0 | M40: x | N40: 1.35 | O40: % | P40: = | Q40: 0 | R40: = | S40: 0
D41: 400 | E41: mm | F41: 0 | G41: 0 | H41: 0 | I41: x | J41: =(120+D41*0.8)/600.88*IF('Coût de l''eau usée'!$M$1=1,$R$8,$R$12) -> 759.8801757 | K41: = | L41: 0 | M41: x | N41: 1.35 | O41: % | P41: = | Q41: 0 | R41: = | S41: 0
D42: 500 | E42: mm | F42: 0 | G42: 0 | H42: 0 | I42: x | J42: =(120+D42*0.8)/600.88*IF('Coût de l''eau usée'!$M$1=1,$R$8,$R$12) -> 898.0402077 | K42: = | L42: 0 | M42: x | N42: 1.35 | O42: % | P42: = | Q42: 0 | R42: = | S42: 0
C43: ≥ | D43: 600 | E43: mm | F43: 0 | G43: 0 | H43: 0 | I43: x | J43: =(120+D43*0.8)/600.88*IF('Coût de l''eau usée'!$M$1=1,$R$8,$R$12) -> 1036.20024 | K43: = | L43: 0 | M43: x | N43: 1.35 | O43: % | P43: = | Q43: 0 | R43: = | S43: 0
C44: Valeurs totales : | F44: =SUM(F37:F43) -> 0 | G44: =SUM(G37:G43) -> 0 | H44: =SUM(H37:H43) -> 0 | K44: =SUM(L37:L43) -> 0 | P44: =SUM(Q37:Q43) -> 0 | R44: =SUM(S37:S43) -> 0
B46: 1.3. | C46: PE | K46: Durée de vie utile : | M46: 75 | N46: ans
C48: Diamètre extérieur | F48: Longueur (m) | G48: Longueur (m) | H48: Longueur (m) | I48: Valeur unitaire (€/m) | K48: Valeur totale (€) | M48: Taux d'amortissement | P48: Amortissement annuel (€) | R48: Amortissement annuel (€)
C49: ≤ | D49: 225 | E49: mm | F49: 0 | G49: 0 | H49: 0 | I49: x | J49: =(70+(D49-D49*0.18-0.03)*1)/600.88*IF('Coût de l''eau usée'!$M$1=1,$R$8,$R$12) -> 439.4697916 | K49: = | L49: =(F49+G49+H49)*J49 -> 0 | M49: x | N49: =ROUND((1/$M$46*10000)/5,0)*5/100 -> 1.35 | O49: % | P49: = | Q49: =L49*N49/100 -> 0 | R49: = | S49: =IF((G49*J49-G49*$J$22+H49*J49)*N49/100<0,0,(G49*J49-G49*$J$22+H49*J49)*N49/100) -> 0
D50: 250 | E50: mm | F50: 0 | G50: 0 | H50: 0 | I50: x | J50: =(70+(D50-D50*0.18-0.03)*1)/600.88*IF('Coût de l''eau usée'!$M$1=1,$R$8,$R$12) -> 474.8732998 | K50: = | L50: =(F50+G50+H50)*J50 -> 0 | M50: x | N50: =ROUND((1/$M$46*10000)/5,0)*5/100 -> 1.35 | O50: % | P50: = | Q50: =L50*N50/100 -> 0 | R50: = | S50: =IF((G50*J50-G50*$J$22+H50*J50)*N50/100<0,0,(G50*J50-G50*$J$22+H50*J50)*N50/100) -> 0
D51: 280 | E51: mm | F51: 0 | G51: 0 | H51: 0 | I51: x | J51: =(70+(D51-D51*0.18-0.03)*1)/600.88*IF('Coût de l''eau usée'!$M$1=1,$R$8,$R$12) -> 517.3575097 | K51: = | L51: =(F51+G51+H51)*J51 -> 0 | M51: x | N51: =ROUND((1/$M$46*10000)/5,0)*5/100 -> 1.35 | O51: % | P51: = | Q51: =L51*N51/100 -> 0 | R51: = | S51: =IF((G51*J51-G51*$J$22+H51*J51)*N51/100<0,0,(G51*J51-G51*$J$22+H51*J51)*N51/100) -> 0
D52: 315 | E52: mm | F52: 0 | G52: 0 | H52: 0 | I52: x | J52: =(70+(D52-D52*0.18-0.03)*1)/600.88*IF('Coût de l''eau usée'!$M$1=1,$R$8,$R$12) -> 566.9224211 | K52: = | L52: =(F52+G52+H52)*J52 -> 0 | M52: x | N52: =ROUND((1/$M$46*10000)/5,0)*5/100 -> 1.35 | O52: % | P52: = | Q52: =L52*N52/100 -> 0 | R52: = | S52: =IF((G52*J52-G52*$J$22+H52*J52)*N52/100<0,0,(G52*J52-G52*$J$22+H52*J52)*N52/100) -> 0
C53: ≥ | D53: 355 | E53: mm | F53: 0 | G53: 0 | H53: 0 | I53: x | J53: =(70+(D53-D53*0.18-0.03)*1)/600.88*IF('Coût de l''eau usée'!$M$1=1,$R$8,$R$12) -> 623.5680342 | K53: = | L53: =(F53+G53+H53)*J53 -> 0 | M53: x | N53: =ROUND((1/$M$46*10000)/5,0)*5/100 -> 1.35 | O53: % | P53: = | Q53: =L53*N53/100 -> 0 | R53: = | S53: =IF((G53*J53-G53*$J$22+H53*J53)*N53/100<0,0,(G53*J53-G53*$J$22+H53*J53)*N53/100) -> 0
C54: Valeurs totales : | F54: =SUM(F49:F53) -> 0 | G54: =SUM(G49:G53) -> 0 | H54: =SUM(H49:H53) -> 0 | K54: =SUM(L49:L53) -> 0 | P54: =SUM(Q49:Q53) -> 0 | R54: =SUM(S49:S53) -> 0
B56: 1.4. | C56: PEHD sous pression | K56: Durée de vie utile : | M56: 75 | N56: ans
C58: Diamètre extérieur | F58: Longueur (m) | G58: Longueur (m) | H58: Longueur (m) | I58: Valeur unitaire (€/m) | K58: Valeur totale (€) | M58: Taux d'amortissement | P58: Amortissement annuel (€) | R58: Amortissement annuel (€)
C59: ≤ | D59: 90 | E59: mm | F59: 0 | G59: 0 | H59: 0 | I59: x | J59: =(35+(D59-D59*0.18-0.03)*0.8)/600.88*IF('Coût de l''eau usée'!$M$1=1,$R$8,$R$12) -> 162.3656696 | K59: = | L59: =(F59+G59+H59)*J59 -> 0 | M59: x | N59: =ROUND((1/$M$56*10000)/5,0)*5/100 -> 1.35 | O59: % | P59: = | Q59: =L59*N59/100 -> 0 | R59: = | S59: =IF((G59*J59-G59*$J$22+H59*J59)*N59/100<0,0,(G59*J59-G59*$J$22+H59*J59)*N59/100) -> 0
D60: 110 | E60: mm | F60: 0 | G60: 0 | H60: 0 | I60: x | J60: =(35+(D60-D60*0.18-0.03)*0.8)/600.88*IF('Coût de l''eau usée'!$M$1=1,$R$8,$R$12) -> 185.0239148 | K60: = | L60: 0 | M60: x | N60: 1.35 | O60: % | P60: = | Q60: 0 | R60: = | S60: 0
D61: 125 | E61: mm | F61: 0 | G61: 0 | H61: 0 | I61: x | J61: =(35+(D61-D61*0.18-0.03)*0.8)/600.88*IF('Coût de l''eau usée'!$M$1=1,$R$8,$R$12) -> 202.0175987 | K61: = | L61: 0 | M61: x | N61: 1.35 | O61: % | P61: = | Q61: 0 | R61: = | S61: 0
D62: 160 | E62: mm | F62: 0 | G62: 0 | H62: 0 | I62: x | J62: =(35+(D62-D62*0.18-0.03)*0.8)/600.88*IF('Coût de l''eau usée'!$M$1=1,$R$8,$R$12) -> 241.6695279 | K62: = | L62: 0 | M62: x | N62: 1.35 | O62: % | P62: = | Q62: 0 | R62: = | S62: 0
D63: 180 | E63: mm | F63: 0 | G63: 0 | H63: 0 | I63: x | J63: =(35+(D63-D63*0.18-0.03)*0.8)/600.88*IF('Coût de l''eau usée'!$M$1=1,$R$8,$R$12) -> 264.3277731 | K63: = | L63: 0 | M63: x | N63: 1.35 | O63: % | P63: = | Q63: 0 | R63: = | S63: 0
C64: ≥ | D64: 225 | E64: mm | F64: 0 | G64: 0 | H64: 0 | I64: x | J64: =(35+(D64-D64*0.18-0.03)*0.8)/600.88*IF('Coût de l''eau usée'!$M$1=1,$R$8,$R$12) -> 315.3088249 | K64: = | L64: 0 | M64: x | N64: 1.35 | O64: % | P64: = | Q64: 0 | R64: = | S64: 0
C65: Valeurs totales : | F65: =SUM(F59:F64) -> 0 | G65: =SUM(G59:G64) -> 0 | H65: =SUM(H59:H64) -> 0 | K65: =SUM(L59:L64) -> 0 | P65: =SUM(Q59:Q64) -> 0 | R65: =SUM(S59:S64) -> 0
C68: TOTAL de l'amortissement annuel des collecteurs posés en zone verte en € : | P68: =P32+P65+P54+P44 -> 0 | R68: =R32+R65+R54+R44 -> 0
B71: 2. | C71: Collecteurs posés en zone rurale à faible densité de construction | S71: Aide
B73: 2.1. | C73: Béton armé | F73: Eau usée | G73: Eau mixte | H73: Eau pluviale | K73: Durée de vie utile : | M73: 60 | N73: ans | P73: Charges totales | R73: Non imputables
C75: Diamètre nominal | F75: Longueur (m) | G75: Longueur (m) | H75: Longueur (m) | I75: Valeur unitaire (€/m) | K75: Valeur totale (€) | M75: Taux d'amortissement | P75: Amortissement annuel (€) | R75: Amortissement annuel (€)
C76: ≤ | D76: 300 | E76: mm | F76: 0 | G76: 0 | H76: 0 | I76: x | J76: =(160+D76*0.85)/600.88*IF('Coût de l''eau usée'!$M$1=1,$R$8,$R$12) -> 716.7051658 | K76: = | L76: =(F76+G76+H76)*J76*$V$2 -> 0 | M76: x | N76: =ROUND((1/$M$73*10000)/5,0)*5/100 -> 1.65 | O76: % | P76: = | Q76: =L76*N76/100 -> 0 | R76: = | S76: =IF((G76*J76-G76*$J$76+H76*J76)*N76/100<0,0,(G76*J76-G76*$J$76+H76*J76)*N76/100)*$V$2 -> 0
D77: 400 | E77: mm | F77: 0 | G77: 0 | H77: 0 | I77: x | J77: =(160+D77*0.85)/600.88*IF('Coût de l''eau usée'!$M$1=1,$R$8,$R$12) -> 863.5001997 | K77: = | L77: =(F77+G77+H77)*J77*$V$2 -> 0 | M77: x | N77: =ROUND((1/$M$73*10000)/5,0)*5/100 -> 1.65 | O77: % | P77: = | Q77: =L77*N77/100 -> 0 | R77: = | S77: 0
D78: 500 | E78: mm | F78: 0 | G78: 0 | H78: 0 | I78: x | J78: =(160+D78*0.85)/600.88*IF('Coût de l''eau usée'!$M$1=1,$R$8,$R$12) -> 1010.295234 | K78: = | L78: 0 | M78: x | N78: 1.65 | O78: % | P78: = | Q78: 0 | R78: = | S78: 0
D79: 600 | E79: mm | F79: 0 | G79: 0 | H79: 0 | I79: x | J79: =(160+D79*0.85)/600.88*IF('Coût de l''eau usée'!$M$1=1,$R$8,$R$12) -> 1157.090268 | K79: = | L79: 0 | M79: x | N79: 1.65 | O79: % | P79: = | Q79: 0 | R79: = | S79: 0
D80: 700 | E80: mm | F80: 0 | G80: 0 | H80: 0 | I80: x | J80: =(160+D80*0.85)/600.88*IF('Coût de l''eau usée'!$M$1=1,$R$8,$R$12) -> 1303.885302 | K80: = | L80: 0 | M80: x | N80: 1.65 | O80: % | P80: = | Q80: 0 | R80: = | S80: 0
D81: 800 | E81: mm | F81: 0 | G81: 0 | H81: 0 | I81: x | J81: =(160+D81*0.85)/600.88*IF('Coût de l''eau usée'!$M$1=1,$R$8,$R$12) -> 1450.680336 | K81: = | L81: 0 | M81: x | N81: 1.65 | O81: % | P81: = | Q81: 0 | R81: = | S81: 0
D82: 900 | E82: mm | F82: 0 | G82: 0 | H82: 0 | I82: x | J82: =(160+D82*0.85)/600.88*IF('Coût de l''eau usée'!$M$1=1,$R$8,$R$12) -> 1597.475369 | K82: = | L82: 0 | M82: x | N82: 1.65 | O82: % | P82: = | Q82: 0 | R82: = | S82: 0
D83: 1000 | E83: mm | F83: 0 | G83: 0 | H83: 0 | I83: x | J83: =(160+D83*0.85)/600.88*IF('Coût de l''eau usée'!$M$1=1,$R$8,$R$12) -> 1744.270403 | K83: = | L83: 0 | M83: x | N83: 1.65 | O83: % | P83: = | Q83: 0 | R83: = | S83: 0
D84: 1100 | E84: mm | F84: 0 | G84: 0 | H84: 0 | I84: x | J84: =(160+D84*0.85)/600.88*IF('Coût de l''eau usée'!$M$1=1,$R$8,$R$12) -> 1891.065437 | K84: = | L84: 0 | M84: x | N84: 1.65 | O84: % | P84: = | Q84: 0 | R84: = | S84: 0
C85: ≥ | D85: 1200 | E85: mm | F85: 0 | G85: 0 | H85: 0 | I85: x | J85: =(160+D85*0.85)/600.88*IF('Coût de l''eau usée'!$M$1=1,$R$8,$R$12) -> 2037.860471 | K85: = | L85: =(F85+G85+H85)*J85*$V$2 -> 0 | M85: x | N85: 1.65 | O85: % | P85: = | Q85: 0 | R85: = | S85: 0
C86: Valeurs totales : | F86: =SUM(F76:F85)*$V$2 -> 0 | G86: =SUM(G76:G85)*$V$2 -> 0 | H86: =SUM(H76:H85)*$V$2 -> 0 | K86: =SUM(L76:L85) -> 0 | P86: =SUM(Q76:Q85) -> 0 | R86: =SUM(S76:S85) -> 0
B88: 2.2. | C88: Fonte ductile | K88: Durée de vie utile : | M88: 60 | N88: ans
C90: Diamètre nominal | F90: Longueur (m) | G90: Longueur (m) | H90: Longueur (m) | I90: Valeur unitaire (€/m) | K90: Valeur totale (€) | M90: Taux d'amortissement | P90: Amortissement annuel (€) | R90: Amortissement annuel (€)
C91: ≤ | D91: 200 | E91: mm | F91: 0 | G91: 0 | H91: 0 | I91: x | J91: =(170+D91*0.9)/600.88*IF('Coût de l''eau usée'!$M$1=1,$R$8,$R$12) -> 604.4501398 | K91: = | L91: =(F91+G91+H91)*J91*$V$2 -> 0 | M91: x | N91: =ROUND((1/$M$88*10000)/5,0)*5/100 -> 1.65 | O91: % | P91: = | Q91: =L91*N91/100 -> 0 | R91: = | S91: =IF((G91*J91-G91*$J$76+H91*J91)*N91/100<0,0,(G91*J91-G91*$J$76+H91*J91)*N91/100)*$V$2 -> 0
D92: 300 | E92: mm | F92: 0 | G92: 0 | H92: 0 | I92: x | J92: =(170+D92*0.9)/600.88*IF('Coût de l''eau usée'!$M$1=1,$R$8,$R$12) -> 759.8801757 | K92: = | L92: =(F92+G92+H92)*J92*$V$2 -> 0 | M92: x | N92: =ROUND((1/$M$88*10000)/5,0)*5/100 -> 1.65 | O92: % | P92: = | Q92: =L92*N92/100 -> 0 | R92: = | S92: =IF((G92*J92-G92*$J$76+H92*J92)*N92/100<0,0,(G92*J92-G92*$J$76+H92*J92)*N92/100)*$V$2 -> 0
D93: 400 | E93: mm | F93: 0 | G93: 0 | H93: 0 | I93: x | J93: =(170+D93*0.9)/600.88*IF('Coût de l''eau usée'!$M$1=1,$R$8,$R$12) -> 915.3102117 | K93: = | L93: =(F93+G93+H93)*J93*$V$2 -> 0 | M93: x | N93: =ROUND((1/$M$88*10000)/5,0)*5/100 -> 1.65 | O93: % | P93: = | Q93: =L93*N93/100 -> 0 | R93: = | S93: =IF((G93*J93-G93*$J$76+H93*J93)*N93/100<0,0,(G93*J93-G93*$J$76+H93*J93)*N93/100)*$V$2 -> 0
D94: 500 | E94: mm | F94: 0 | G94: 0 | H94: 0 | I94: x | J94: =(170+D94*0.9)/600.88*IF('Coût de l''eau usée'!$M$1=1,$R$8,$R$12) -> 1070.740248 | K94: = | L94: =(F94+G94+H94)*J94*$V$2 -> 0 | M94: x | N94: =ROUND((1/$M$88*10000)/5,0)*5/100 -> 1.65 | O94: % | P94: = | Q94: =L94*N94/100 -> 0 | R94: = | S94: =IF((G94*J94-G94*$J$76+H94*J94)*N94/100<0,0,(G94*J94-G94*$J$76+H94*J94)*N94/100)*$V$2 -> 0
C95: ≥ | D95: 600 | E95: mm | F95: 0 | G95: 0 | H95: 0 | I95: x | J95: =(170+D95*0.9)/600.88*IF('Coût de l''eau usée'!$M$1=1,$R$8,$R$12) -> 1226.170284 | K95: = | L95: =(F95+G95+H95)*J95*$V$2 -> 0 | M95: x | N95: =ROUND((1/$M$88*10000)/5,0)*5/100 -> 1.65 | O95: % | P95: = | Q95: =L95*N95/100 -> 0 | R95: = | S95: =IF((G95*J95-G95*$J$76+H95*J95)*N95/100<0,0,(G95*J95-G95*$J$76+H95*J95)*N95/100)*$V$2 -> 0
C96: Valeurs totales : | F96: =SUM(F91:F95)*$V$2 -> 0 | G96: =SUM(G91:G95)*$V$2 -> 0 | H96: =SUM(H91:H95)*$V$2 -> 0 | K96: =SUM(L91:L95) -> 0 | P96: =SUM(Q91:Q95) -> 0 | R96: =SUM(S91:S95) -> 0
B98: 2.3. | C98: PE | K98: Durée de vie utile : | M98: 60 | N98: ans
C100: Diamètre extérieur | F100: Longueur (m) | G100: Longueur (m) | H100: Longueur (m) | I100: Valeur unitaire (€/m) | K100: Valeur totale (€) | M100: Taux d'amortissement | P100: Amortissement annuel (€) | R100: Amortissement annuel (€)
C101: ≤ | D101: 225 | E101: mm | F101: 0 | G101: 0 | H101: 0 | I101: x | J101: =(120+(D101-D101*0.18-0.03)*1.1)/600.88*IF('Coût de l''eau usée'!$M$1=1,$R$8,$R$12) -> 557.677788 | K101: = | L101: =(F101+G101+H101)*J101*$V$2 -> 0 | M101: x | N101: =ROUND((1/$M$98*10000)/5,0)*5/100 -> 1.65 | O101: % | P101: = | Q101: =L101*N101/100 -> 0 | R101: = | S101: =IF((G101*J101-G101*$J$76+H101*J101)*N101/100<0,0,(G101*J101-G101*$J$76+H101*J101)*N101/100)*$V$2 -> 0
D102: 250 | E102: mm | F102: 0 | G102: 0 | H102: 0 | I102: x | J102: =(120+(D102-D102*0.18-0.03)*1.1)/600.88*IF('Coût de l''eau usée'!$M$1=1,$R$8,$R$12) -> 596.621647 | K102: = | L102: =(F102+G102+H102)*J102*$V$2 -> 0 | M102: x | N102: =ROUND((1/$M$98*10000)/5,0)*5/100 -> 1.65 | O102: % | P102: = | Q102: =L102*N102/100 -> 0 | R102: = | S102: =IF((G102*J102-G102*$J$76+H102*J102)*N102/100<0,0,(G102*J102-G102*$J$76+H102*J102)*N102/100)*$V$2 -> 0
D103: 280 | E103: mm | F103: 0 | G103: 0 | H103: 0 | I103: x | J103: =(120+(D103-D103*0.18-0.03)*1.1)/600.88*IF('Coût de l''eau usée'!$M$1=1,$R$8,$R$12) -> 643.3542778 | K103: = | L103: =(F103+G103+H103)*J103*$V$2 -> 0 | M103: x | N103: =ROUND((1/$M$98*10000)/5,0)*5/100 -> 1.65 | O103: % | P103: = | Q103: =L103*N103/100 -> 0 | R103: = | S103: =IF((G103*J103-G103*$J$76+H103*J103)*N103/100<0,0,(G103*J103-G103*$J$76+H103*J103)*N103/100)*$V$2 -> 0
D104: 315 | E104: mm | F104: 0 | G104: 0 | H104: 0 | I104: x | J104: =(120+(D104-D104*0.18-0.03)*1.1)/600.88*IF('Coût de l''eau usée'!$M$1=1,$R$8,$R$12) -> 697.8756804 | K104: = | L104: =(F104+G104+H104)*J104*$V$2 -> 0 | M104: x | N104: =ROUND((1/$M$98*10000)/5,0)*5/100 -> 1.65 | O104: % | P104: = | Q104: =L104*N104/100 -> 0 | R104: = | S104: =IF((G104*J104-G104*$J$76+H104*J104)*N104/100<0,0,(G104*J104-G104*$J$76+H104*J104)*N104/100)*$V$2 -> 0
C105: ≥ | D105: 355 | E105: mm | F105: 0 | G105: 0 | H105: 0 | I105: x | J105: =(120+(D105-D105*0.18-0.03)*1.1)/600.88*IF('Coût de l''eau usée'!$M$1=1,$R$8,$R$12) -> 760.1858548 | K105: = | L105: =(F105+G105+H105)*J105*$V$2 -> 0 | M105: x | N105: =ROUND((1/$M$98*10000)/5,0)*5/100 -> 1.65 | O105: % | P105: = | Q105: =L105*N105/100 -> 0 | R105: = | S105: =IF((G105*J105-G105*$J$76+H105*J105)*N105/100<0,0,(G105*J105-G105*$J$76+H105*J105)*N105/100)*$V$2 -> 0
C106: Valeurs totales : | F106: =SUM(F101:F105)*$V$2 -> 0 | G106: =SUM(G101:G105)*$V$2 -> 0 | H106: =SUM(H101:H105)*$V$2 -> 0 | K106: =SUM(L101:L105) -> 0 | P106: =SUM(Q101:Q105) -> 0 | R106: =SUM(S101:S105) -> 0
B108: 2.4. | C108: PEHD sous pression | K108: Durée de vie utile : | M108: 50 | N108: ans
C110: Diamètre extérieur | F110: Longueur (m) | G110: Longueur (m) | H110: Longueur (m) | I110: Valeur unitaire (€/m) | K110: Valeur totale (€) | M110: Taux d'amortissement | P110: Amortissement annuel (€) | R110: Amortissement annuel (€)
C111: ≤ | D111: 90 | E111: mm | F111: 0 | G111: 0 | H111: 0 | I111: x | J111: =(95+(D111-D111*0.18-0.03)*0.9)/600.88*IF('Coût de l''eau usée'!$M$1=1,$R$8,$R$12) -> 278.7257755 | K111: = | L111: =(F111+G111+H111)*J111*$V$2 -> 0 | M111: x | N111: =ROUND((1/$M$108*10000)/5,0)*5/100 -> 2 | O111: % | P111: = | Q111: =L111*N111/100 -> 0 | R111: = | S111: =IF((G111*J111-G111*$J$76+H111*J111)*N111/100<0,0,(G111*J111-G111*$J$76+H111*J111)*N111/100)*$V$2 -> 0
D112: 110 | E112: mm | F112: 0 | G112: 0 | H112: 0 | I112: x | J112: =(95+(D112-D112*0.18-0.03)*0.9)/600.88*IF('Coût de l''eau usée'!$M$1=1,$R$8,$R$12) -> 304.2163014 | K112: = | L112: 0 | M112: x | N112: 2 | O112: % | P112: = | Q112: 0 | R112: = | S112: 0
D113: 125 | E113: mm | F113: 0 | G113: 0 | H113: 0 | I113: x | J113: =(95+(D113-D113*0.18-0.03)*0.9)/600.88*IF('Coût de l''eau usée'!$M$1=1,$R$8,$R$12) -> 323.3341958 | K113: = | L113: 0 | M113: x | N113: 2 | O113: % | P113: = | Q113: 0 | R113: = | S113: 0
D114: 160 | E114: mm | F114: 0 | G114: 0 | H114: 0 | I114: x | J114: =(95+(D114-D114*0.18-0.03)*0.9)/600.88*IF('Coût de l''eau usée'!$M$1=1,$R$8,$R$12) -> 367.9426161 | K114: = | L114: 0 | M114: x | N114: 2 | O114: % | P114: = | Q114: 0 | R114: = | S114: 0
D115: 180 | E115: mm | F115: 0 | G115: 0 | H115: 0 | I115: x | J115: =(95+(D115-D115*0.18-0.03)*0.9)/600.88*IF('Coût de l''eau usée'!$M$1=1,$R$8,$R$12) -> 393.433142 | K115: = | L115: 0 | M115: x | N115: 2 | O115: % | P115: = | Q115: 0 | R115: = | S115: 0
C116: ≥ | D116: 225 | E116: mm | F116: 0 | G116: 0 | H116: 0 | I116: x | J116: =(95+(D116-D116*0.18-0.03)*0.9)/600.88*IF('Coût de l''eau usée'!$M$1=1,$R$8,$R$12) -> 450.7868253 | K116: = | L116: 0 | M116: x | N116: 2 | O116: % | P116: = | Q116: 0 | R116: = | S116: 0
C117: Valeurs totales : | F117: =SUM(F111:F116)*$V$2 -> 0 | G117: =SUM(G111:G116)*$V$2 -> 0 | H117: =SUM(H111:H116)*$V$2 -> 0 | K117: =SUM(L111:L116) -> 0 | P117: =SUM(Q111:Q116) -> 0 | R117: =SUM(S111:S116) -> 0
B119: 2.5. | C119: Branchements particuliers | K119: Durée de vie utile : | M119: 50 | N119: ans | S119: Aide
C121: Nombre de branchements particuliers | I121: Valeur unitaire (€/pc) | K121: Valeur totale (€) | M121: Taux d'amortissement | P121: Amortissement annuel (€) | R121: Amortissement annuel (€)
C122: ='Coût de l''eau usée'!D33*V2 -> 0 | I122: x | J122: =ROUND((1800/600.88*IF('Coût de l''eau usée'!$M$1=1,$R$8,$R$12))/10,0)*10 -> 3110 | K122: = | L122: =C122*J122*$V$2 -> 0 | M122: x | N122: =ROUND((1/$M$119*10000)/5,0)*5/100 -> 2 | O122: % | P122: = | Q122: =L122*N122/100 -> 0 | R122: = | S122: =0 -> 0
C124: TOTAL de l'amortissement annuel des collecteurs posés en zone rurale en € : | P124: =P86+P96+P106+P117+Q122 -> 0 | R124: =R86+R96+R106+R117+S122 -> 0
B127: 3. | C127: Collecteurs posés en zone urbaine à forte densité de construction | S127: Aide
B129: 3.1. | C129: Béton armé | F129: Eau usée | G129: Eau mixte | H129: Eau pluviale | K129: Durée de vie utile : | M129: 60 | N129: ans | P129: Charges totales | R129: Non imputables
C131: Diamètre nominal | F131: Longueur (m) | G131: Longueur (m) | H131: Longueur (m) | I131: Valeur unitaire (€/m) | K131: Valeur totale (€) | M131: Taux d'amortissement | P131: Amortissement annuel (€) | R131: Amortissement annuel (€)
C132: ≤ | D132: 300 | E132: mm | F132: 0 | G132: 0 | H132: 0 | I132: x | J132: =(280+D132*0.85)/600.88*IF('Coût de l''eau usée'!$M$1=1,$R$8,$R$12) -> 923.9452137 | K132: = | L132: =(F132+G132+H132)*J132*$V$1 -> 0 | M132: x | N132: =ROUND((1/$M$129*10000)/5,0)*5/100 -> 1.65 | O132: % | P132: = | Q132: =L132*N132/100 -> 0 | R132: = | S132: =IF((G132*J132-G132*$J$132+H132*J132)*N132/100<0,0,(G132*J132-G132*$J$132+H132*J132)*N132/100)*$V$1 -> 0
D133: 400 | E133: mm | F133: 0 | G133: 0 | H133: 0 | I133: x | J133: =(280+D133*0.85)/600.88*IF('Coût de l''eau usée'!$M$1=1,$R$8,$R$12) -> 1070.740248 | K133: = | L133: =(F133+G133+H133)*J133*$V$1 -> 0 | M133: x | N133: =ROUND((1/$M$129*10000)/5,0)*5/100 -> 1.65 | O133: % | P133: = | Q133: =L133*N133/100 -> 0 | R133: = | S133: 0
D134: 500 | E134: mm | F134: 0 | G134: 0 | H134: 0 | I134: x | J134: =(280+D134*0.85)/600.88*IF('Coût de l''eau usée'!$M$1=1,$R$8,$R$12) -> 1217.535282 | K134: = | L134: 0 | M134: x | N134: 1.65 | O134: % | P134: = | Q134: 0 | R134: = | S134: 0
D135: 600 | E135: mm | F135: 0 | G135: 0 | H135: 0 | I135: x | J135: =(280+D135*0.85)/600.88*IF('Coût de l''eau usée'!$M$1=1,$R$8,$R$12) -> 1364.330316 | K135: = | L135: 0 | M135: x | N135: 1.65 | O135: % | P135: = | Q135: 0 | R135: = | S135: 0
D136: 700 | E136: mm | F136: 0 | G136: 0 | H136: 0 | I136: x | J136: =(280+D136*0.85)/600.88*IF('Coût de l''eau usée'!$M$1=1,$R$8,$R$12) -> 1511.125349 | K136: = | L136: 0 | M136: x | N136: 1.65 | O136: % | P136: = | Q136: 0 | R136: = | S136: 0
D137: 800 | E137: mm | F137: 0 | G137: 0 | H137: 0 | I137: x | J137: =(280+D137*0.85)/600.88*IF('Coût de l''eau usée'!$M$1=1,$R$8,$R$12) -> 1657.920383 | K137: = | L137: 0 | M137: x | N137: 1.65 | O137: % | P137: = | Q137: 0 | R137: = | S137: 0
D138: 900 | E138: mm | F138: 0 | G138: 0 | H138: 0 | I138: x | J138: =(280+D138*0.85)/600.88*IF('Coût de l''eau usée'!$M$1=1,$R$8,$R$12) -> 1804.715417 | K138: = | L138: 0 | M138: x | N138: 1.65 | O138: % | P138: = | Q138: 0 | R138: = | S138: 0
D139: 1000 | E139: mm | F139: 0 | G139: 0 | H139: 0 | I139: x | J139: =(280+D139*0.85)/600.88*IF('Coût de l''eau usée'!$M$1=1,$R$8,$R$12) -> 1951.510451 | K139: = | L139: 0 | M139: x | N139: 1.65 | O139: % | P139: = | Q139: 0 | R139: = | S139: 0
D140: 1100 | E140: mm | F140: 0 | G140: 0 | H140: 0 | I140: x | J140: =(280+D140*0.85)/600.88*IF('Coût de l''eau usée'!$M$1=1,$R$8,$R$12) -> 2098.305485 | K140: = | L140: 0 | M140: x | N140: 1.65 | O140: % | P140: = | Q140: 0 | R140: = | S140: 0
C141: ≥ | D141: 1200 | E141: mm | F141: 0 | G141: 0 | H141: 0 | I141: x | J141: =(280+D141*0.85)/600.88*IF('Coût de l''eau usée'!$M$1=1,$R$8,$R$12) -> 2245.100519 | K141: = | L141: 0 | M141: x | N141: 1.65 | O141: % | P141: = | Q141: 0 | R141: = | S141: 0
C142: Valeurs totales : | F142: =SUM(F132:F141)*$V$1 -> 0 | G142: =SUM(G132:G141)*$V$1 -> 0 | H142: =SUM(H132:H141)*$V$1 -> 0 | K142: =SUM(L132:L141) -> 0 | P142: =SUM(Q132:Q141) -> 0 | R142: =SUM(S132:S141) -> 0
B144: 3.2. | C144: Fonte ductile | K144: Durée de vie utile : | M144: 60 | N144: ans
C146: Diamètre nominal | F146: Longueur (m) | G146: Longueur (m) | H146: Longueur (m) | I146: Valeur unitaire (€/m) | K146: Valeur totale (€) | M146: Taux d'amortissement | P146: Amortissement annuel (€) | R146: Amortissement annuel (€)
C147: ≤ | D147: 200 | E147: mm | F147: 0 | G147: 0 | H147: 0 | I147: x | J147: =(290+D147*0.9)/600.88*IF('Coût de l''eau usée'!$M$1=1,$R$8,$R$12) -> 811.6901877 | K147: = | L147: =(F147+G147+H147)*J147*$V$1 -> 0 | M147: x | N147: =ROUND((1/$M$144*10000)/5,0)*5/100 -> 1.65 | O147: % | P147: = | Q147: =L147*N147/100 -> 0 | R147: = | S147: =IF((G147*J147-G147*$J$132+H147*J147)*N147/100<0,0,(G147*J147-G147*$J$132+H147*J147)*N147/100)*$V$1 -> 0
D148: 300 | E148: mm | F148: 0 | G148: 0 | H148: 0 | I148: x | J148: =(290+D148*0.9)/600.88*IF('Coût de l''eau usée'!$M$1=1,$R$8,$R$12) -> 967.1202237 | K148: = | L148: =(F148+G148+H148)*J148*$V$1 -> 0 | M148: x | N148: =ROUND((1/$M$144*10000)/5,0)*5/100 -> 1.65 | O148: % | P148: = | Q148: =L148*N148/100 -> 0 | R148: = | S148: =IF((G148*J148-G148*$J$132+H148*J148)*N148/100<0,0,(G148*J148-G148*$J$132+H148*J148)*N148/100)*$V$1 -> 0
D149: 400 | E149: mm | F149: 0 | G149: 0 | H149: 0 | I149: x | J149: =(290+D149*0.9)/600.88*IF('Coût de l''eau usée'!$M$1=1,$R$8,$R$12) -> 1122.55026 | K149: = | L149: =(F149+G149+H149)*J149*$V$1 -> 0 | M149: x | N149: =ROUND((1/$M$144*10000)/5,0)*5/100 -> 1.65 | O149: % | P149: = | Q149: =L149*N149/100 -> 0 | R149: = | S149: =IF((G149*J149-G149*$J$132+H149*J149)*N149/100<0,0,(G149*J149-G149*$J$132+H149*J149)*N149/100)*$V$1 -> 0
D150: 500 | E150: mm | F150: 0 | G150: 0 | H150: 0 | I150: x | J150: =(290+D150*0.9)/600.88*IF('Coût de l''eau usée'!$M$1=1,$R$8,$R$12) -> 1277.980296 | K150: = | L150: =(F150+G150+H150)*J150*$V$1 -> 0 | M150: x | N150: =ROUND((1/$M$144*10000)/5,0)*5/100 -> 1.65 | O150: % | P150: = | Q150: =L150*N150/100 -> 0 | R150: = | S150: =IF((G150*J150-G150*$J$132+H150*J150)*N150/100<0,0,(G150*J150-G150*$J$132+H150*J150)*N150/100)*$V$1 -> 0
D151: 600 | E151: mm | F151: 0 | G151: 0 | H151: 0 | I151: x | J151: =(290+D151*0.9)/600.88*IF('Coût de l''eau usée'!$M$1=1,$R$8,$R$12) -> 1433.410332 | K151: = | L151: =(F151+G151+H151)*J151*$V$1 -> 0 | M151: x | N151: =ROUND((1/$M$144*10000)/5,0)*5/100 -> 1.65 | O151: % | P151: = | Q151: =L151*N151/100 -> 0 | R151: = | S151: =IF((G151*J151-G151*$J$132+H151*J151)*N151/100<0,0,(G151*J151-G151*$J$132+H151*J151)*N151/100)*$V$1 -> 0
C152: Valeurs totales : | F152: =SUM(F147:F151)*$V$1 -> 0 | G152: =SUM(G147:G151)*$V$1 -> 0 | H152: =SUM(H147:H151)*$V$1 -> 0 | K152: =SUM(L147:L151) -> 0 | P152: =SUM(Q147:Q151) -> 0 | R152: =SUM(S147:S151) -> 0
B154: 3.3. | C154: PE | K154: Durée de vie utile : | M154: 60 | N154: ans
C156: Diamètre extérieur | F156: Longueur (m) | G156: Longueur (m) | H156: Longueur (m) | I156: Valeur unitaire (€/m) | K156: Valeur totale (€) | M156: Taux d'amortissement | P156: Amortissement annuel (€) | R156: Amortissement annuel (€)
C157: ≤ | D157: 225 | E157: mm | F157: 0 | G157: 0 | H157: 0 | I157: x | J157: =(240+(D157-D157*0.18-0.03)*1.1)/600.88*IF('Coût de l''eau usée'!$M$1=1,$R$8,$R$12) -> 764.9178359 | K157: = | L157: =(F157+G157+H157)*J157*$V$1 -> 0 | M157: x | N157: =ROUND((1/$M$154*10000)/5,0)*5/100 -> 1.65 | O157: % | P157: = | Q157: =L157*N157/100 -> 0 | R157: = | S157: =IF((G157*J157-G157*$J$132+H157*J157)*N157/100<0,0,(G157*J157-G157*$J$132+H157*J157)*N157/100)*$V$1 -> 0
D158: 250 | E158: mm | F158: 0 | G158: 0 | H158: 0 | I158: x | J158: =(240+(D158-D158*0.18-0.03)*1.1)/600.88*IF('Coût de l''eau usée'!$M$1=1,$R$8,$R$12) -> 803.8616949 | K158: = | L158: =(F158+G158+H158)*J158*$V$1 -> 0 | M158: x | N158: =ROUND((1/$M$154*10000)/5,0)*5/100 -> 1.65 | O158: % | P158: = | Q158: =L158*N158/100 -> 0 | R158: = | S158: =IF((G158*J158-G158*$J$132+H158*J158)*N158/100<0,0,(G158*J158-G158*$J$132+H158*J158)*N158/100)*$V$1 -> 0
D159: 280 | E159: mm | F159: 0 | G159: 0 | H159: 0 | I159: x | J159: =(240+(D159-D159*0.18-0.03)*1.1)/600.88*IF('Coût de l''eau usée'!$M$1=1,$R$8,$R$12) -> 850.5943257 | K159: = | L159: =(F159+G159+H159)*J159*$V$1 -> 0 | M159: x | N159: =ROUND((1/$M$154*10000)/5,0)*5/100 -> 1.65 | O159: % | P159: = | Q159: =L159*N159/100 -> 0 | R159: = | S159: =IF((G159*J159-G159*$J$132+H159*J159)*N159/100<0,0,(G159*J159-G159*$J$132+H159*J159)*N159/100)*$V$1 -> 0
D160: 315 | E160: mm | F160: 0 | G160: 0 | H160: 0 | I160: x | J160: =(240+(D160-D160*0.18-0.03)*1.1)/600.88*IF('Coût de l''eau usée'!$M$1=1,$R$8,$R$12) -> 905.1157283 | K160: = | L160: =(F160+G160+H160)*J160*$V$1 -> 0 | M160: x | N160: =ROUND((1/$M$154*10000)/5,0)*5/100 -> 1.65 | O160: % | P160: = | Q160: =L160*N160/100 -> 0 | R160: = | S160: =IF((G160*J160-G160*$J$132+H160*J160)*N160/100<0,0,(G160*J160-G160*$J$132+H160*J160)*N160/100)*$V$1 -> 0
C161: ≥ | D161: 355 | E161: mm | F161: 0 | G161: 0 | H161: 0 | I161: x | J161: =(240+(D161-D161*0.18-0.03)*1.1)/600.88*IF('Coût de l''eau usée'!$M$1=1,$R$8,$R$12) -> 967.4259027 | K161: = | L161: =(F161+G161+H161)*J161*$V$1 -> 0 | M161: x | N161: =ROUND((1/$M$154*10000)/5,0)*5/100 -> 1.65 | O161: % | P161: = | Q161: =L161*N161/100 -> 0 | R161: = | S161: =IF((G161*J161-G161*$J$132+H161*J161)*N161/100<0,0,(G161*J161-G161*$J$132+H161*J161)*N161/100)*$V$1 -> 0
C162: Valeurs totales : | F162: =SUM(F157:F161)*$V$1 -> 0 | G162: =SUM(G157:G161)*$V$1 -> 0 | H162: =SUM(H157:H161)*$V$1 -> 0 | K162: =SUM(L157:L161) -> 0 | P162: =SUM(Q157:Q161) -> 0 | R162: =SUM(S157:S161) -> 0
B164: 3.4. | C164: PEHD sous pression | K164: Durée de vie utile : | M164: 50 | N164: ans
C166: Diamètre extérieur | F166: Longueur (m) | G166: Longueur (m) | H166: Longueur (m) | I166: Valeur unitaire (€/m) | K166: Valeur totale (€) | M166: Taux d'amortissement | P166: Amortissement annuel (€) | R166: Amortissement annuel (€)
C167: ≤ | D167: 90 | E167: mm | F167: 0 | G167: 0 | H167: 0 | I167: x | J167: =(145+(D167-D167*0.18-0.03)*0.9)/600.88*IF('Coût de l''eau usée'!$M$1=1,$R$8,$R$12) -> 365.0757954 | K167: = | L167: =(F167+G167+H167)*J167*$V$1 -> 0 | M167: x | N167: =ROUND((1/$M$164*10000)/5,0)*5/100 -> 2 | O167: % | P167: = | Q167: =L167*N167/100 -> 0 | R167: = | S167: =IF((G167*J167-G167*$J$132+H167*J167)*N167/100<0,0,(G167*J167-G167*$J$132+H167*J167)*N167/100)*$V$1 -> 0
D168: 110 | E168: mm | F168: 0 | G168: 0 | H168: 0 | I168: x | J168: =(145+(D168-D168*0.18-0.03)*0.9)/600.88*IF('Coût de l''eau usée'!$M$1=1,$R$8,$R$12) -> 390.5663213 | K168: = | L168: 0 | M168: x | N168: 2 | O168: % | P168: = | Q168: 0 | R168: = | S168: 0
D169: 125 | E169: mm | F169: 0 | G169: 0 | H169: 0 | I169: x | J169: =(145+(D169-D169*0.18-0.03)*0.9)/600.88*IF('Coût de l''eau usée'!$M$1=1,$R$8,$R$12) -> 409.6842158 | K169: = | L169: 0 | M169: x | N169: 2 | O169: % | P169: = | Q169: 0 | R169: = | S169: 0
D170: 160 | E170: mm | F170: 0 | G170: 0 | H170: 0 | I170: x | J170: =(145+(D170-D170*0.18-0.03)*0.9)/600.88*IF('Coût de l''eau usée'!$M$1=1,$R$8,$R$12) -> 454.2926361 | K170: = | L170: 0 | M170: x | N170: 2 | O170: % | P170: = | Q170: 0 | R170: = | S170: 0
D171: 180 | E171: mm | F171: 0 | G171: 0 | H171: 0 | I171: x | J171: =(145+(D171-D171*0.18-0.03)*0.9)/600.88*IF('Coût de l''eau usée'!$M$1=1,$R$8,$R$12) -> 479.783162 | K171: = | L171: 0 | M171: x | N171: 2 | O171: % | P171: = | Q171: 0 | R171: = | S171: 0
C172: ≥ | D172: 225 | E172: mm | F172: 0 | G172: 0 | H172: 0 | I172: x | J172: =(145+(D172-D172*0.18-0.03)*0.9)/600.88*IF('Coût de l''eau usée'!$M$1=1,$R$8,$R$12) -> 537.1368452 | K172: = | L172: 0 | M172: x | N172: 2 | O172: % | P172: = | Q172: 0 | R172: = | S172: 0
C173: Valeurs totales : | F173: =SUM(F167:F172)*$V$1 -> 0 | G173: =SUM(G167:G172)*$V$1 -> 0 | H173: =SUM(H167:H172)*$V$1 -> 0 | K173: =SUM(L167:L172) -> 0 | P173: =SUM(Q167:Q172) -> 0 | R173: =SUM(S167:S172) -> 0
B175: 3.5. | C175: Branchements particuliers | K175: Durée de vie utile : | M175: 50 | N175: ans | S175: Aide
C177: Nombre de branchements particuliers | I177: Valeur unitaire (€/pc) | K177: Valeur totale (€) | M177: Taux d'amortissement | P177: Amortissement annuel (€) | R177: Amortissement annuel (€)
C178: ='Coût de l''eau usée'!D33*V1 -> 0 | I178: x | J178: =ROUND((2400/600.88*IF('Coût de l''eau usée'!$M$1=1,$R$8,$R$12))/10,0)*10 -> 4140 | K178: = | L178: =C178*J178*$V$1 -> 0 | M178: x | N178: =ROUND((1/$M$175*10000)/5,0)*5/100 -> 2 | O178: % | P178: = | Q178: =L178*N178/100 -> 0 | R178: = | S178: =0 -> 0
C180: TOTAL de l'amortissement annuel des collecteurs posés en zone urbaine en € : | P180: =P142+P152+P162+P173+Q178 -> 0 | R180: =R142+R152+R162+R173+S178 -> 0
B183: 4. | C183: Bassins de rétention | S183: Aide
B185: 4.1. | C185: Conduites de rétention EM (SRK) | K185: Durée de vie utile : | M185: 40 | N185: ans | P185: Charges totales | R185: Non imputables
C187: Code national | G187: Volume de stockage (m3) | I187: Valeur unitaire (€/m3) | K187: Valeur totale (€) | M187: Taux d'amortissement | P187: Amortissement annuel (€) | R187: Amortissement annuel (€)
G188: 0 | I188: x | J188: =IF(G188=0,0,(14000*G188^-0.4)/600.88*IF('Coût de l''eau usée'!$M$1=1,$R$8,$R$12)) -> 0 | K188: = | L188: =G188*J188 -> 0 | M188: x | N188: =ROUND((1/$M$185*10000)/5,0)*5/100 -> 2.5 | O188: % | P188: = | Q188: =L188*N188/100 -> 0 | R188: = | S188: =L188*N188/100 -> 0
G189: 0 | I189: x | J189: =IF(G189=0,0,(14000*G189^-0.4)/600.88*IF('Coût de l''eau usée'!$M$1=1,$R$8,$R$12)) -> 0 | K189: = | L189: 0 | M189: x | N189: =ROUND((1/$M$185*10000)/5,0)*5/100 -> 2.5 | O189: % | P189: = | Q189: =L189*N189/100 -> 0 | R189: = | S189: =L189*N189/100 -> 0
G190: 0 | I190: x | J190: =IF(G190=0,0,(14000*G190^-0.4)/600.88*IF('Coût de l''eau usée'!$M$1=1,$R$8,$R$12)) -> 0 | K190: = | L190: =G190*J190 -> 0 | M190: x | N190: 2.5 | O190: % | P190: = | Q190: 0 | R190: = | S190: 0
G191: 0 | I191: x | J191: =IF(G191=0,0,(14000*G191^-0.4)/600.88*IF('Coût de l''eau usée'!$M$1=1,$R$8,$R$12)) -> 0 | K191: = | L191: 0 | M191: x | N191: 2.5 | O191: % | P191: = | Q191: 0 | R191: = | S191: 0
G192: 0 | I192: x | J192: =IF(G192=0,0,(14000*G192^-0.4)/600.88*IF('Coût de l''eau usée'!$M$1=1,$R$8,$R$12)) -> 0 | K192: = | L192: 0 | M192: x | N192: 2.5 | O192: % | P192: = | Q192: 0 | R192: = | S192: 0
G193: 0 | I193: x | J193: =IF(G193=0,0,(14000*G193^-0.4)/600.88*IF('Coût de l''eau usée'!$M$1=1,$R$8,$R$12)) -> 0 | K193: = | L193: 0 | M193: x | N193: 2.5 | O193: % | P193: = | Q193: 0 | R193: = | S193: 0
G194: 0 | I194: x | J194: =IF(G194=0,0,(14000*G194^-0.4)/600.88*IF('Coût de l''eau usée'!$M$1=1,$R$8,$R$12)) -> 0 | K194: = | L194: 0 | M194: x | N194: 2.5 | O194: % | P194: = | Q194: 0 | R194: = | S194: 0
G195: 0 | I195: x | J195: =IF(G195=0,0,(14000*G195^-0.4)/600.88*IF('Coût de l''eau usée'!$M$1=1,$R$8,$R$12)) -> 0 | K195: = | L195: 0 | M195: x | N195: 2.5 | O195: % | P195: = | Q195: 0 | R195: = | S195: 0
G196: 0 | I196: x | J196: =IF(G196=0,0,(14000*G196^-0.4)/600.88*IF('Coût de l''eau usée'!$M$1=1,$R$8,$R$12)) -> 0 | K196: = | L196: 0 | M196: x | N196: 2.5 | O196: % | P196: = | Q196: 0 | R196: = | S196: 0
G197: 0 | I197: x | J197: =IF(G197=0,0,(14000*G197^-0.4)/600.88*IF('Coût de l''eau usée'!$M$1=1,$R$8,$R$12)) -> 0 | K197: = | L197: 0 | M197: x | N197: 2.5 | O197: % | P197: = | Q197: 0 | R197: = | S197: 0
C198: Valeurs totales : | G198: =SUM(H188:H197) -> 0 | K198: =SUM(L188:L197) -> 0 | P198: =SUM(Q188:Q197) -> 0 | R198: =SUM(S188:S197) -> 0
B200: 4.2. | C200: Bassins de rétention EM enterrés (RÜB) | K200: Durée de vie utile : | M200: 40 | N200: ans
C202: Code national | G202: Volume de stockage (m3) | I202: Valeur unitaire (€/m3) | K202: Valeur totale (€) | M202: Taux d'amortissement | P202: Amortissement annuel (€) | R202: Amortissement annuel (€)
G203: 0 | I203: x | J203: =IF(G203=0,0,(39000*G203^-(8/15))/600.88*IF('Coût de l''eau usée'!$M$1=1,$R$8,$R$12)) -> 0 | K203: = | L203: =G203*J203 -> 0 | M203: x | N203: =ROUND((1/$M$200*10000)/5,0)*5/100 -> 2.5 | O203: % | P203: = | Q203: =L203*N203/100 -> 0 | R203: = | S203: =L203*N203/100 -> 0
G204: 0 | I204: x | J204: =IF(G204=0,0,(39000*G204^-(8/15))/600.88*IF('Coût de l''eau usée'!$M$1=1,$R$8,$R$12)) -> 0 | K204: = | L204: =G204*J204 -> 0 | M204: x | N204: =ROUND((1/$M$200*10000)/5,0)*5/100 -> 2.5 | O204: % | P204: = | Q204: =L204*N204/100 -> 0 | R204: = | S204: =L204*N204/100 -> 0
G205: 0 | I205: x | J205: =IF(G205=0,0,(39000*G205^-(8/15))/600.88*IF('Coût de l''eau usée'!$M$1=1,$R$8,$R$12)) -> 0 | K205: = | L205: 0 | M205: x | N205: 2.5 | O205: % | P205: = | Q205: 0 | R205: = | S205: 0
G206: 0 | I206: x | J206: =IF(G206=0,0,(39000*G206^-(8/15))/600.88*IF('Coût de l''eau usée'!$M$1=1,$R$8,$R$12)) -> 0 | K206: = | L206: 0 | M206: x | N206: 2.5 | O206: % | P206: = | Q206: 0 | R206: = | S206: 0
G207: 0 | I207: x | J207: =IF(G207=0,0,(39000*G207^-(8/15))/600.88*IF('Coût de l''eau usée'!$M$1=1,$R$8,$R$12)) -> 0 | K207: = | L207: 0 | M207: x | N207: 2.5 | O207: % | P207: = | Q207: 0 | R207: = | S207: 0
G208: 0 | I208: x | J208: =IF(G208=0,0,(39000*G208^-(8/15))/600.88*IF('Coût de l''eau usée'!$M$1=1,$R$8,$R$12)) -> 0 | K208: = | L208: 0 | M208: x | N208: 2.5 | O208: % | P208: = | Q208: 0 | R208: = | S208: 0
G209: 0 | I209: x | J209: =IF(G209=0,0,(39000*G209^-(8/15))/600.88*IF('Coût de l''eau usée'!$M$1=1,$R$8,$R$12)) -> 0 | K209: = | L209: 0 | M209: x | N209: 2.5 | O209: % | P209: = | Q209: 0 | R209: = | S209: 0
G210: 0 | I210: x | J210: =IF(G210=0,0,(39000*G210^-(8/15))/600.88*IF('Coût de l''eau usée'!$M$1=1,$R$8,$R$12)) -> 0 | K210: = | L210: 0 | M210: x | N210: 2.5 | O210: % | P210: = | Q210: 0 | R210: = | S210: 0
G211: 0 | I211: x | J211: =IF(G211=0,0,(39000*G211^-(8/15))/600.88*IF('Coût de l''eau usée'!$M$1=1,$R$8,$R$12)) -> 0 | K211: = | L211: 0 | M211: x | N211: 2.5 | O211: % | P211: = | Q211: 0 | R211: = | S211: 0
G212: 0 | I212: x | J212: =IF(G212=0,0,(39000*G212^-(8/15))/600.88*IF('Coût de l''eau usée'!$M$1=1,$R$8,$R$12)) -> 0 | K212: = | L212: 0 | M212: x | N212: 2.5 | O212: % | P212: = | Q212: 0 | R212: = | S212: 0
C213: Valeurs totales : | G213: =SUM(H203:H212) -> 0 | K213: =SUM(L203:L212) -> 0 | P213: =SUM(Q203:Q212) -> 0 | R213: =SUM(S203:S212) -> 0
B215: 4.3. | C215: Bassins de rétention EP à ciel ouvert (RRB) | K215: Durée de vie utile : | M215: 50 | N215: ans
C217: Code national | G217: Volume de stockage (m3) | I217: Valeur unitaire (€/m3) | K217: Valeur totale (€) | M217: Taux d'amortissement | P217: Amortissement annuel (€) | R217: Amortissement annuel (€)
G218: 0 | I218: x | J218: =IF(G218=0,0,(80+11000*G218^-1)/600.88*IF('Coût de l''eau usée'!$M$1=1,$R$8,$R$12)) -> 0 | K218: = | L218: =G218*J218 -> 0 | M218: x | N218: =ROUND((1/$M$215*10000)/5,0)*5/100 -> 2 | O218: % | P218: = | Q218: =L218*N218/100 -> 0 | R218: = | S218: =L218*N218/100 -> 0
G219: 0 | I219: x | J219: =IF(G219=0,0,(80+11000*G219^-1)/600.88*IF('Coût de l''eau usée'!$M$1=1,$R$8,$R$12)) -> 0 | K219: = | L219: =G219*J219 -> 0 | M219: x | N219: =ROUND((1/$M$215*10000)/5,0)*5/100 -> 2 | O219: % | P219: = | Q219: =L219*N219/100 -> 0 | R219: = | S219: =L219*N219/100 -> 0
G220: 0 | I220: x | J220: =IF(G220=0,0,(80+11000*G220^-1)/600.88*IF('Coût de l''eau usée'!$M$1=1,$R$8,$R$12)) -> 0 | K220: = | L220: 0 | M220: x | N220: 2 | O220: % | P220: = | Q220: 0 | R220: = | S220: 0
G221: 0 | I221: x | J221: =IF(G221=0,0,(80+11000*G221^-1)/600.88*IF('Coût de l''eau usée'!$M$1=1,$R$8,$R$12)) -> 0 | K221: = | L221: 0 | M221: x | N221: 2 | O221: % | P221: = | Q221: 0 | R221: = | S221: 0
G222: 0 | I222: x | J222: =IF(G222=0,0,(80+11000*G222^-1)/600.88*IF('Coût de l''eau usée'!$M$1=1,$R$8,$R$12)) -> 0 | K222: = | L222: 0 | M222: x | N222: 2 | O222: % | P222: = | Q222: 0 | R222: = | S222: 0
G223: 0 | I223: x | J223: =IF(G223=0,0,(80+11000*G223^-1)/600.88*IF('Coût de l''eau usée'!$M$1=1,$R$8,$R$12)) -> 0 | K223: = | L223: 0 | M223: x | N223: 2 | O223: % | P223: = | Q223: 0 | R223: = | S223: 0
G224: 0 | I224: x | J224: =IF(G224=0,0,(80+11000*G224^-1)/600.88*IF('Coût de l''eau usée'!$M$1=1,$R$8,$R$12)) -> 0 | K224: = | L224: 0 | M224: x | N224: 2 | O224: % | P224: = | Q224: 0 | R224: = | S224: 0
G225: 0 | I225: x | J225: =IF(G225=0,0,(80+11000*G225^-1)/600.88*IF('Coût de l''eau usée'!$M$1=1,$R$8,$R$12)) -> 0 | K225: = | L225: 0 | M225: x | N225: 2 | O225: % | P225: = | Q225: 0 | R225: = | S225: 0
G226: 0 | I226: x | J226: =IF(G226=0,0,(80+11000*G226^-1)/600.88*IF('Coût de l''eau usée'!$M$1=1,$R$8,$R$12)) -> 0 | K226: = | L226: 0 | M226: x | N226: 2 | O226: % | P226: = | Q226: 0 | R226: = | S226: 0
G227: 0 | I227: x | J227: =IF(G227=0,0,(80+11000*G227^-1)/600.88*IF('Coût de l''eau usée'!$M$1=1,$R$8,$R$12)) -> 0 | K227: = | L227: 0 | M227: x | N227: 2 | O227: % | P227: = | Q227: 0 | R227: = | S227: 0
C228: Valeurs totales : | G228: =SUM(H218:H227) -> 0 | K228: =SUM(L218:L227) -> 0 | P228: =SUM(Q218:Q227) -> 0 | R228: =SUM(S218:S227) -> 0
B230: 4.4. | C230: Bassins de rétention EP enterrés (RRB) | K230: Durée de vie utile : | M230: 50 | N230: ans
C232: Code national | G232: Volume de stockage (m3) | I232: Valeur unitaire (€/m3) | K232: Valeur totale (€) | M232: Taux d'amortissement | P232: Amortissement annuel (€) | R232: Amortissement annuel (€)
G233: 0 | I233: x | J233: =IF(G233=0,0,(11000*G233^-0.4)/600.88*IF('Coût de l''eau usée'!$M$1=1,$R$8,$R$12)) -> 0 | K233: = | L233: =G233*J233 -> 0 | M233: x | N233: =ROUND((1/$M$230*10000)/5,0)*5/100 -> 2 | O233: % | P233: = | Q233: =L233*N233/100 -> 0 | R233: = | S233: =L233*N233/100 -> 0
G234: 0 | I234: x | J234: =IF(G234=0,0,(11000*G234^-0.4)/600.88*IF('Coût de l''eau usée'!$M$1=1,$R$8,$R$12)) -> 0 | K234: = | L234: =G234*J234 -> 0 | M234: x | N234: =ROUND((1/$M$230*10000)/5,0)*5/100 -> 2 | O234: % | P234: = | Q234: =L234*N234/100 -> 0 | R234: = | S234: =L234*N234/100 -> 0
G235: 0 | I235: x | J235: =IF(G235=0,0,(11000*G235^-0.4)/600.88*IF('Coût de l''eau usée'!$M$1=1,$R$8,$R$12)) -> 0 | K235: = | L235: 0 | M235: x | N235: 2 | O235: % | P235: = | Q235: 0 | R235: = | S235: 0
G236: 0 | I236: x | J236: =IF(G236=0,0,(11000*G236^-0.4)/600.88*IF('Coût de l''eau usée'!$M$1=1,$R$8,$R$12)) -> 0 | K236: = | L236: 0 | M236: x | N236: 2 | O236: % | P236: = | Q236: 0 | R236: = | S236: 0
G237: 0 | I237: x | J237: =IF(G237=0,0,(11000*G237^-0.4)/600.88*IF('Coût de l''eau usée'!$M$1=1,$R$8,$R$12)) -> 0 | K237: = | L237: 0 | M237: x | N237: 2 | O237: % | P237: = | Q237: 0 | R237: = | S237: 0
G238: 0 | I238: x | J238: =IF(G238=0,0,(11000*G238^-0.4)/600.88*IF('Coût de l''eau usée'!$M$1=1,$R$8,$R$12)) -> 0 | K238: = | L238: 0 | M238: x | N238: 2 | O238: % | P238: = | Q238: 0 | R238: = | S238: 0
G239: 0 | I239: x | J239: =IF(G239=0,0,(11000*G239^-0.4)/600.88*IF('Coût de l''eau usée'!$M$1=1,$R$8,$R$12)) -> 0 | K239: = | L239: 0 | M239: x | N239: 2 | O239: % | P239: = | Q239: 0 | R239: = | S239: 0
G240: 0 | I240: x | J240: =IF(G240=0,0,(11000*G240^-0.4)/600.88*IF('Coût de l''eau usée'!$M$1=1,$R$8,$R$12)) -> 0 | K240: = | L240: 0 | M240: x | N240: 2 | O240: % | P240: = | Q240: 0 | R240: = | S240: 0
G241: 0 | I241: x | J241: =IF(G241=0,0,(11000*G241^-0.4)/600.88*IF('Coût de l''eau usée'!$M$1=1,$R$8,$R$12)) -> 0 | K241: = | L241: 0 | M241: x | N241: 2 | O241: % | P241: = | Q241: 0 | R241: = | S241: 0
G242: 0 | I242: x | J242: =IF(G242=0,0,(11000*G242^-0.4)/600.88*IF('Coût de l''eau usée'!$M$1=1,$R$8,$R$12)) -> 0 | K242: = | L242: 0 | M242: x | N242: 2 | O242: % | P242: = | Q242: 0 | R242: = | S242: 0
C243: Valeurs totales : | G243: =SUM(H233:H242) -> 0 | K243: =SUM(L233:L242) -> 0 | P243: =SUM(Q233:Q242) -> 0 | R243: =SUM(S233:S242) -> 0
C245: TOTAL de l'amortissement annuel des bassins de rétention en € : | P245: =P198+P213+P228+P243 -> 0 | R245: =R198+R213+R228+R243 -> 0
B248: 5. | C248: Stations de pompage des eaux usées | S248: Aide
K250: Durée de vie utile : | M250: 20 | N250: ans | P250: Charges totales | R250: Non imputables
C252: Code national | G252: Capacité maximale (l/s) | I252: Valeur unitaire (€/l/s) | K252: Valeur totale (€) | M252: Taux d'amortissement | P252: Amortissement annuel (€) | R252: Amortissement annuel (€)
G253: 0 | I253: x | J253: =IF(G253=0,0,17000*G253^-0.65)/600.88*IF('Coût de l''eau usée'!$M$1=1,$R$8,$R$12) -> 0 | K253: = | L253: =G253*J253 -> 0 | M253: x | N253: =ROUND((1/$M$250*10000)/5,0)*5/100 -> 5 | O253: % | P253: = | Q253: =L253*N253/100 -> 0 | R253: = | S253: 0
G254: 0 | I254: x | J254: =IF(G254=0,0,17000*G254^-0.65)/600.88*IF('Coût de l''eau usée'!$M$1=1,$R$8,$R$12) -> 0 | K254: = | L254: 0 | M254: x | N254: 5 | O254: % | P254: = | Q254: 0 | R254: = | S254: 0
G255: 0 | I255: x | J255: =IF(G255=0,0,17000*G255^-0.65)/600.88*IF('Coût de l''eau usée'!$M$1=1,$R$8,$R$12) -> 0 | K255: = | L255: 0 | M255: x | N255: 5 | O255: % | P255: = | Q255: 0 | R255: = | S255: 0
G256: 0 | I256: x | J256: =IF(G256=0,0,17000*G256^-0.65)/600.88*IF('Coût de l''eau usée'!$M$1=1,$R$8,$R$12) -> 0 | K256: = | L256: 0 | M256: x | N256: 5 | O256: % | P256: = | Q256: 0 | R256: = | S256: 0
G257: 0 | I257: x | J257: =IF(G257=0,0,17000*G257^-0.65)/600.88*IF('Coût de l''eau usée'!$M$1=1,$R$8,$R$12) -> 0 | K257: = | L257: 0 | M257: x | N257: 5 | O257: % | P257: = | Q257: 0 | R257: = | S257: 0
G258: 0 | I258: x | J258: =IF(G258=0,0,17000*G258^-0.65)/600.88*IF('Coût de l''eau usée'!$M$1=1,$R$8,$R$12) -> 0 | K258: = | L258: 0 | M258: x | N258: 5 | O258: % | P258: = | Q258: 0 | R258: = | S258: 0
... 36 more rows

Sheet Amortissement charroi et immob.
A1: 18 / 04 / 2023
B2: Amortissement des parcs automobile et immobilier | J2: =IF('Coût de l''eau usée'!$M$1=1,'Coût de l''eau usée'!$G$5,'Coût de l''eau usée'!$H$7) -> Année de référence (comptes) : | P2: =IF('Coût de l''eau usée'!$M$1=1,'Coût de l''eau usée'!$J$5,'Coût de l''eau usée'!$J$7) -> 2022
B6: 0. | C6: Taux à base du calcul de l'amortissement
C8: =CONCATENATE("Indice moyen annuel des prix de la construction de l'année ",'Coût de l''eau usée'!$J$5," :") -> Indice moyen annuel des prix de la construction de l'année 2022 : | O8: ='Amortissement infrastructures'!R8 -> 1037.72
C10: Variation annuelle estimée de l'indice des prix de la construction : | O10: ='Amortissement infrastructures'!R10 -> 0.028
C12: =CONCATENATE("Indice moyen annuel estimé des prix de la construction de l'année ",'Coût de l''eau usée'!$J$7," :") -> Indice moyen annuel estimé des prix de la construction de l'année 2024 : | O12: ='Amortissement infrastructures'!R12 -> 1096.645892
B15: 1. | C15: Parc automobile
B17: 1.1. | C17: Véhicules < 3,50 to | J17: Durée de vie utile : | M17: 5 | N17: ans
C19: Désignation | F19: Nombre de véhicules | G19: Quote-part de l'utilisation | H19: Valeur unitaire (€) | J19: Valeur totale (€) | L19: Taux d'amortissement | O19: Amortissement annuel (€)
F20: 0 | G20: 1 | H20: x | I20: 0 | J20: = | K20: =F20*G20*I20 -> 0 | L20: x | M20: =ROUND((1/M17*10000)/25,0)*25/100 -> 20 | N20: % | O20: = | P20: =K20*M20/100 -> 0
F21: 0 | G21: 1 | H21: x | I21: 0 | J21: = | K21: =F21*G21*I21 -> 0 | L21: x | M21: =ROUND((1/M17*10000)/25,0)*25/100 -> 20 | N21: % | O21: = | P21: =K21*M21/100 -> 0
F22: 0 | G22: 1 | H22: x | I22: 0 | J22: = | K22: 0 | L22: x | M22: =ROUND((1/M17*10000)/25,0)*25/100 -> 20 | N22: % | O22: = | P22: 0
F23: 0 | G23: 1 | H23: x | I23: 0 | J23: = | K23: 0 | L23: x | M23: =ROUND((1/M17*10000)/25,0)*25/100 -> 20 | N23: % | O23: = | P23: =K23*M23/100 -> 0
F24: 0 | G24: 1 | H24: x | I24: 0 | J24: = | K24: 0 | L24: x | M24: =ROUND((1/M17*10000)/25,0)*25/100 -> 20 | N24: % | O24: = | P24: =K24*M24/100 -> 0
F25: 0 | G25: 1 | H25: x | I25: 0 | J25: = | K25: 0 | L25: x | M25: =ROUND((1/M17*10000)/25,0)*25/100 -> 20 | N25: % | O25: = | P25: =K25*M25/100 -> 0
F26: 0 | G26: 1 | H26: x | I26: 0 | J26: = | K26: 0 | L26: x | M26: =ROUND((1/M17*10000)/25,0)*25/100 -> 20 | N26: % | O26: = | P26: 0
F27: 0 | G27: 1 | H27: x | I27: 0 | J27: = | K27: 0 | L27: x | M27: =ROUND((1/M17*10000)/25,0)*25/100 -> 20 | N27: % | O27: = | P27: 0
F28: 0 | G28: 1 | H28: x | I28: 0 | J28: = | K28: 0 | L28: x | M28: =ROUND((1/M17*10000)/25,0)*25/100 -> 20 | N28: % | O28: = | P28: 0
F29: 0 | G29: 1 | H29: x | I29: 0 | J29: = | K29: 0 | L29: x | M29: =ROUND((1/M17*10000)/25,0)*25/100 -> 20 | N29: % | O29: = | P29: 0
C30: Valeurs totales : | F30: =SUM(F20:F29) -> 0 | J30: =SUM(K20:K29) -> 0 | O30: =SUM(P20:P29) -> 0
B32: 2.2. | C32: Véhicules > 3,50 to | J32: Durée de vie utile : | M32: 10 | N32: ans
C34: Désignation | F34: Nombre de véhicules | G34: Quote-part de l'utilisation | H34: Valeur unitaire (€) | J34: Valeur totale (€) | L34: Taux d'amortissement | O34: Amortissement annuel (€)
F35: 0 | G35: 1 | H35: x | I35: 0 | J35: = | K35: =F35*G35*I35 -> 0 | L35: x | M35: =ROUND((1/M32*10000)/25,0)*25/100 -> 10 | N35: % | O35: = | P35: =K35*M35/100 -> 0
F36: 0 | G36: 1 | H36: x | I36: 0 | J36: = | K36: =F36*G36*I36 -> 0 | L36: x | M36: =ROUND((1/M32*10000)/25,0)*25/100 -> 10 | N36: % | O36: = | P36: 0
F37: 0 | G37: 1 | H37: x | I37: 0 | J37: = | K37: 0 | L37: x | M37: =ROUND((1/M32*10000)/25,0)*25/100 -> 10 | N37: % | O37: = | P37: 0
F38: 0 | G38: 1 | H38: x | I38: 0 | J38: = | K38: 0 | L38: x | M38: =ROUND((1/M32*10000)/25,0)*25/100 -> 10 | N38: % | O38: = | P38: 0
F39: 0 | G39: 1 | H39: x | I39: 0 | J39: = | K39: 0 | L39: x | M39: =ROUND((1/M32*10000)/25,0)*25/100 -> 10 | N39: % | O39: = | P39: 0
F40: 0 | G40: 1 | H40: x | I40: 0 | J40: = | K40: 0 | L40: x | M40: =ROUND((1/M32*10000)/25,0)*25/100 -> 10 | N40: % | O40: = | P40: 0
F41: 0 | G41: 1 | H41: x | I41: 0 | J41: = | K41: 0 | L41: x | M41: =ROUND((1/M32*10000)/25,0)*25/100 -> 10 | N41: % | O41: = | P41: 0
F42: 0 | G42: 1 | H42: x | I42: 0 | J42: = | K42: 0 | L42: x | M42: =ROUND((1/M32*10000)/25,0)*25/100 -> 10 | N42: % | O42: = | P42: 0
F43: 0 | G43: 1 | H43: x | I43: 0 | J43: = | K43: 0 | L43: x | M43: =ROUND((1/M32*10000)/25,0)*25/100 -> 10 | N43: % | O43: = | P43: 0
F44: 0 | G44: 1 | H44: x | I44: 0 | J44: = | K44: 0 | L44: x | M44: =ROUND((1/M32*10000)/25,0)*25/100 -> 10 | N44: % | O44: = | P44: 0
C45: Valeurs totales : | F45: =SUM(F35:F44) -> 0 | J45: =SUM(K35:K44) -> 0 | O45: =SUM(P35:P44) -> 0
C47: TOTAL de l'amortissement annuel du parc automobile en € : | O47: =O30+O45 -> 0
B50: 2. | C50: Parc immobilier
B52: 2.1. | C52: Bâtiments administratifs | J52: Durée de vie utile : | M52: 40 | N52: ans
C54: Désignation | F54: Volume bâti (m3) | G54: Quote-part de l'utilisation | H54: Valeur unitaire (€/m3) | J54: Valeur totale (€) | L54: Taux d'amortissement | O54: Amortissement annuel (€)
F55: 0 | G55: 1 | H55: x | I55: =ROUND((350/600.88*IF('Coût de l''eau usée'!$M$1=1,$O$8,$O$12))/10,0)*10 -> 600 | J55: = | K55: =F55*G55*I55 -> 0 | L55: x | M55: =ROUND((1/M52*10000)/25,0)*25/100 -> 2.5 | N55: % | O55: = | P55: =K55*M55/100 -> 0
F56: 0 | G56: 1 | H56: x | I56: =ROUND((350/600.88*IF('Coût de l''eau usée'!$M$1=1,$O$8,$O$12))/10,0)*10 -> 600 | J56: = | K56: =F56*G56*I56 -> 0 | L56: x | M56: =ROUND((1/M52*10000)/25,0)*25/100 -> 2.5 | N56: % | O56: = | P56: =K56*M56/100 -> 0
F57: 0 | G57: 1 | H57: x | I57: =ROUND((350/600.88*IF('Coût de l''eau usée'!$M$1=1,$O$8,$O$12))/10,0)*10 -> 600 | J57: = | K57: =F57*G57*I57 -> 0 | L57: x | M57: =ROUND((1/M52*10000)/25,0)*25/100 -> 2.5 | N57: % | O57: = | P57: =K57*M57/100 -> 0
F58: 0 | G58: 1 | H58: x | I58: =ROUND((350/600.88*IF('Coût de l''eau usée'!$M$1=1,$O$8,$O$12))/10,0)*10 -> 600 | J58: = | K58: =F58*G58*I58 -> 0 | L58: x | M58: =ROUND((1/M52*10000)/25,0)*25/100 -> 2.5 | N58: % | O58: = | P58: =K58*M58/100 -> 0
F59: 0 | G59: 1 | H59: x | I59: =ROUND((350/600.88*IF('Coût de l''eau usée'!$M$1=1,$O$8,$O$12))/10,0)*10 -> 600 | J59: = | K59: =F59*G59*I59 -> 0 | L59: x | M59: =ROUND((1/M52*10000)/25,0)*25/100 -> 2.5 | N59: % | O59: = | P59: =K59*M59/100 -> 0
C60: Valeurs totales : | F60: =SUM(F55:F59) -> 0 | J60: =SUM(K55:K59) -> 0 | O60: =SUM(P55:P59) -> 0
B62: 2.2. | C62: Halls techniques | J62: Durée de vie utile : | M62: 30 | N62: ans
C64: Désignation | F64: Volume bâti (m3) | G64: Quote-part de l'utilisation | H64: Valeur unitaire (€/m3) | J64: Valeur totale (€) | L64: Taux d'amortissement | O64: Amortissement annuel (€)
F65: 0 | G65: 1 | H65: x | I65: =ROUND((150/600.88*IF('Coût de l''eau usée'!$M$1=1,$O$8,$O$12))/10,0)*10 -> 260 | J65: = | K65: =F65*G65*I65 -> 0 | L65: x | M65: =ROUND((1/M62*10000)/25,0)*25/100 -> 3.25 | N65: % | O65: = | P65: =K65*M65/100 -> 0
F66: 0 | G66: 1 | H66: x | I66: =ROUND((150/600.88*IF('Coût de l''eau usée'!$M$1=1,$O$8,$O$12))/10,0)*10 -> 260 | J66: = | K66: =F66*G66*I66 -> 0 | L66: x | M66: =ROUND((1/M62*10000)/25,0)*25/100 -> 3.25 | N66: % | O66: = | P66: =K66*M66/100 -> 0
F67: 0 | G67: 1 | H67: x | I67: =ROUND((150/600.88*IF('Coût de l''eau usée'!$M$1=1,$O$8,$O$12))/10,0)*10 -> 260 | J67: = | K67: =F67*G67*I67 -> 0 | L67: x | M67: =ROUND((1/M62*10000)/25,0)*25/100 -> 3.25 | N67: % | O67: = | P67: =K67*M67/100 -> 0
F68: 0 | G68: 1 | H68: x | I68: =ROUND((150/600.88*IF('Coût de l''eau usée'!$M$1=1,$O$8,$O$12))/10,0)*10 -> 260 | J68: = | K68: =F68*G68*I68 -> 0 | L68: x | M68: =ROUND((1/M62*10000)/25,0)*25/100 -> 3.25 | N68: % | O68: = | P68: =K68*M68/100 -> 0
F69: 0 | G69: 1 | H69: x | I69: =ROUND((150/600.88*IF('Coût de l''eau usée'!$M$1=1,$O$8,$O$12))/10,0)*10 -> 260 | J69: = | K69: =F69*G69*I69 -> 0 | L69: x | M69: =ROUND((1/M62*10000)/25,0)*25/100 -> 3.25 | N69: % | O69: = | P69: =K69*M69/100 -> 0
C70: Valeurs totales : | F70: =SUM(F65:F69) -> 0 | J70: =SUM(K65:K69) -> 0 | O70: =SUM(P65:P69) -> 0
C72: TOTAL de l'amortissement annuel du parc immobilier en € : | O72: =O60+O70 -> 0
B75: 8. | C75: Amortissement annuel
C77: TOTAL de l'amortissement annuel des parcs automobile et immobilier en € : | O77: =O47+O72 -> 0
